{"text_format":"1","workbook":"xlsx","n_sheets":18,"sheets":["Fiche organisateur N_1","Fiche organisateur N_2","Rapport de jugement","N_1","N_2","N_3","N_4","N_5","N_6","N_7","N_8","N_9","N_10","N_11","N_12","N_13","N_14","N_15"],"not_rendered":{"charts":0,"images":2,"macros":0,"external_links":0,"defined_names":16,"comments":0,"pivot_tables":0},"unopened":[],"bounds":{"document_bytes":16777216,"sheet_cells":100000,"rows_first":2000,"rows_last":500,"rows_between":2000,"halvings":0,"cell_chars":16384,"cell_head_chars":4096},"cells_cut":0,"cells_raw":0,"read":"whole","date_system":"1900"}

{"sheet":"Fiche organisateur N_1","index":0,"n_rows":38,"n_cols":6,"rows_kept":38,"cut":false,"hidden":false,"merged":[[14,3,14,5],[16,1,16,7],[19,1,19,7],[22,3,22,4],[24,3,24,8],[25,3,25,8],[27,3,27,8],[28,3,28,8],[29,3,29,7],[30,3,30,7],[33,3,33,7],[37,3,37,7]]}
[]
[]
[]
[]
[]
[]
[]
[]
[]
[null,"155 Avenue Jean jaures"]
[null,"93 535 AUBERVILLIERS Cedex"]
[]
[]
[]
[null,null,null,"C  A  C  C  B  T"]
[]
[null,"Certificat d'Aptitude à la Conduite du Chien de Berger sur Troupeaux"]
[]
[]
[null,"Organisateur ==> Fiche N°1"]
[]
[]
[null,null,"Date : ",null,null," [ JJ.MM.AAAA ]"]
[]
[null,null,"ORGANISATEUR : "]
[null,null,"Lieu :  "]
[]
[null,null,"Contact : "]
[null,null,"Coordonnées du contact : "]
[null,null,"E-mail : "]
[null,null,"Tél. : "]
[]
[]
[null,null,"Adresse du rassemblement : "]
[]
[]
[]
[null,null,"Juge : "]

{"sheet":"Fiche organisateur N_2","index":1,"n_rows":29,"n_cols":16,"rows_kept":29,"cut":false,"hidden":false,"merged":[[1,3,1,9],[5,10,5,11],[11,1,11,11]]}
[]
[null,null,null,"Certificat d'Aptitude à la Conduite du Chien de Berger sur Troupeaux"]
[null,null,null,null,null,"ORGANISATEUR",{"$f":"'Fiche organisateur N_1'!D25","v":0}]
[null,null,null,null,null,"Lieu ",{"$f":"'Fiche organisateur N_1'!D26","v":0},null,null,null,null,null,null,null,null,"Secrétariat : vous pouvez faire vos remarques dans ce cadre"]
[null,null,null,null,null,"Adresse du rassemblement",{"$f":"'Fiche organisateur N_1'!D34","v":0}]
[null,null,null,null,null,null,null,null,null,"Date  :",{"$f":"'Fiche organisateur N_1'!D23","v":"00:00:00"},null,null,null,null,"Note : sur cette feuille, vous pouvez ajuster les largeurs de colonnes…"]
[null,null,null,null,null,"Contact",{"$f":"'Fiche organisateur N_1'!D28","v":0}]
[null,null,null,null,null,"Coordonnées du Contact",{"$f":"'Fiche organisateur N_1'!D29","v":0},null,null,null,null,null,null,null,null,"ATTENTION : NE PAS DEPLACER LES CELLULES GRISEES ! "]
[null,null,null,null,null,"Email",{"$f":"'Fiche organisateur N_1'!D30","v":0}]
[null,null,null,null,null,"Tel ",{"$f":"'Fiche organisateur N_1'!D31","v":0}]
[]
[null,"Organisateur ==> Fiche  N°2"]
[]
[null,"N°","Propriétaires","Conducteurs","Formateur","Chien","Affixe","Races /S","Né le ","LOF","Identifiant","N° Carnet de Travail"]
[null,1]
[null,2]
[null,3]
[null,4]
[null,5]
[null,6]
[null,7]
[null,8]
[null,9]
[null,10]
[null,11]
[null,12]
[null,13]
[null,14]
[null,15]

{"sheet":"Rapport de jugement","index":2,"n_rows":34,"n_cols":17,"rows_kept":34,"cut":false,"hidden":false,"merged":[[1,3,1,9],[5,10,5,11],[10,1,10,11],[29,2,29,3],[31,1,31,3]]}
[]
[null,null,null,"Certificat d'Aptitude à la Conduite du Chien de Berger sur Troupeaux"]
[null,null,null,null,null,null,"ORGANISATEUR : ",{"$f":"'Fiche organisateur N_1'!D25","v":0}]
[null,null,null,null,null,null,"Lieu : ",{"$f":"'Fiche organisateur N_1'!D26","v":0},null,null,null,null,null,null,null,"Secrétariat : "]
[null,null,null,null,null,null,"Adresse du rassemblement : ",{"$f":"'Fiche organisateur N_1'!D34","v":0},null,null,null,null,null,null,null,null," vous pouvez faire vos remarques dans ce cadre"]
[null,null,null,null,null,null,null,null,null,"Date : ",{"$f":"'Fiche organisateur N_1'!D23","v":"00:00:00"}]
[null,null,null,null,null,null,"Contact : ",{"$f":"'Fiche organisateur N_1'!D28","v":0}]
[null,null,null,null,null,null,"Coordonnées du Contact : ","…. Email : ",{"$f":"'Fiche organisateur N_1'!D30","v":0}]
[null,null,null,null,null,null,null,"……..Tel  : ",{"$f":"'Fiche organisateur N_1'!D31","v":0}]
[]
[null,"RAPPORT DE JUGEMENT"]
[]
[null,"N°","Propriétaires","Conducteurs","Formateur","Chien","Races /S","Né le ","LOF","Identifiant","N° Carnet de Travail","Mention "]
[null,1,{"$f":"'Fiche organisateur N_2'!C15","v":0},{"$f":"'Fiche organisateur N_2'!D15","v":0},{"$f":"'Fiche organisateur N_2'!E15","v":0},{"$f":"'Fiche organisateur N_2'!F15","v":0},{"$f":"'Fiche organisateur N_2'!H15","v":0},{"$f":"'Fiche organisateur N_2'!I15","v":0},{"$f":"'Fiche organisateur N_2'!J15","v":0},{"$f":"'Fiche organisateur N_2'!K15","v":0},{"$f":"'Fiche organisateur N_2'!L15","v":0},{"$f":"N_1!$E$48","v":"-"}]
[null,2,{"$f":"'Fiche organisateur N_2'!C16","v":0},{"$f":"'Fiche organisateur N_2'!D16","v":0},{"$f":"'Fiche organisateur N_2'!E16","v":0},{"$f":"'Fiche organisateur N_2'!F16","v":0},{"$f":"'Fiche organisateur N_2'!H16","v":0},{"$f":"'Fiche organisateur N_2'!I16","v":0},{"$f":"'Fiche organisateur N_2'!J16","v":0},{"$f":"'Fiche organisateur N_2'!K16","v":0},{"$f":"'Fiche organisateur N_2'!L16","v":0},{"$f":"N_2!$E$48","v":"-"}]
[null,3,{"$f":"'Fiche organisateur N_2'!C17","v":0},{"$f":"'Fiche organisateur N_2'!D17","v":0},{"$f":"'Fiche organisateur N_2'!E17","v":0},{"$f":"'Fiche organisateur N_2'!F17","v":0},{"$f":"'Fiche organisateur N_2'!H17","v":0},{"$f":"'Fiche organisateur N_2'!I17","v":0},{"$f":"'Fiche organisateur N_2'!J17","v":0},{"$f":"'Fiche organisateur N_2'!K17","v":0},{"$f":"'Fiche organisateur N_2'!L17","v":0},{"$f":"N_3!$E$48","v":"-"}]
[null,4,{"$f":"'Fiche organisateur N_2'!C18","v":0},{"$f":"'Fiche organisateur N_2'!D18","v":0},{"$f":"'Fiche organisateur N_2'!E18","v":0},{"$f":"'Fiche organisateur N_2'!F18","v":0},{"$f":"'Fiche organisateur N_2'!H18","v":0},{"$f":"'Fiche organisateur N_2'!I18","v":0},{"$f":"'Fiche organisateur N_2'!J18","v":0},{"$f":"'Fiche organisateur N_2'!K18","v":0},{"$f":"'Fiche organisateur N_2'!L18","v":0},{"$f":"N_4!$E$48","v":"-"}]
[null,5,{"$f":"'Fiche organisateur N_2'!C19","v":0},{"$f":"'Fiche organisateur N_2'!D19","v":0},{"$f":"'Fiche organisateur N_2'!E19","v":0},{"$f":"'Fiche organisateur N_2'!F19","v":0},{"$f":"'Fiche organisateur N_2'!H19","v":0},{"$f":"'Fiche organisateur N_2'!I19","v":0},{"$f":"'Fiche organisateur N_2'!J19","v":0},{"$f":"'Fiche organisateur N_2'!K19","v":0},{"$f":"'Fiche organisateur N_2'!L19","v":0},{"$f":"N_5!$E$48","v":"-"}]
[null,6,{"$f":"'Fiche organisateur N_2'!C20","v":0},{"$f":"'Fiche organisateur N_2'!D20","v":0},{"$f":"'Fiche organisateur N_2'!E20","v":0},{"$f":"'Fiche organisateur N_2'!F20","v":0},{"$f":"'Fiche organisateur N_2'!H20","v":0},{"$f":"'Fiche organisateur N_2'!I20","v":0},{"$f":"'Fiche organisateur N_2'!J20","v":0},{"$f":"'Fiche organisateur N_2'!K20","v":0},{"$f":"'Fiche organisateur N_2'!L20","v":0},{"$f":"N_6!$E$48","v":"-"}]
[null,7,{"$f":"'Fiche organisateur N_2'!C21","v":0},{"$f":"'Fiche organisateur N_2'!D21","v":0},{"$f":"'Fiche organisateur N_2'!E21","v":0},{"$f":"'Fiche organisateur N_2'!F21","v":0},{"$f":"'Fiche organisateur N_2'!H21","v":0},{"$f":"'Fiche organisateur N_2'!I21","v":0},{"$f":"'Fiche organisateur N_2'!J21","v":0},{"$f":"'Fiche organisateur N_2'!K21","v":0},{"$f":"'Fiche organisateur N_2'!L21","v":0},{"$f":"N_7!$E$48","v":"-"}]
[null,8,{"$f":"'Fiche organisateur N_2'!C22","v":0},{"$f":"'Fiche organisateur N_2'!D22","v":0},{"$f":"'Fiche organisateur N_2'!E22","v":0},{"$f":"'Fiche organisateur N_2'!F22","v":0},{"$f":"'Fiche organisateur N_2'!H22","v":0},{"$f":"'Fiche organisateur N_2'!I22","v":0},{"$f":"'Fiche organisateur N_2'!J22","v":0},{"$f":"'Fiche organisateur N_2'!K22","v":0},{"$f":"'Fiche organisateur N_2'!L22","v":0},{"$f":"N_8!$E$48","v":"-"}]
[null,9,{"$f":"'Fiche organisateur N_2'!C23","v":0},{"$f":"'Fiche organisateur N_2'!D23","v":0},{"$f":"'Fiche organisateur N_2'!E23","v":0},{"$f":"'Fiche organisateur N_2'!F23","v":0},{"$f":"'Fiche organisateur N_2'!H23","v":0},{"$f":"'Fiche organisateur N_2'!I23","v":0},{"$f":"'Fiche organisateur N_2'!J23","v":0},{"$f":"'Fiche organisateur N_2'!K23","v":0},{"$f":"'Fiche organisateur N_2'!L23","v":0},{"$f":"N_9!$E$48","v":"-"}]
[null,10,{"$f":"'Fiche organisateur N_2'!C24","v":0},{"$f":"'Fiche organisateur N_2'!D24","v":0},{"$f":"'Fiche organisateur N_2'!E24","v":0},{"$f":"'Fiche organisateur N_2'!F24","v":0},{"$f":"'Fiche organisateur N_2'!H24","v":0},{"$f":"'Fiche organisateur N_2'!I24","v":0},{"$f":"'Fiche organisateur N_2'!J24","v":0},{"$f":"'Fiche organisateur N_2'!K24","v":0},{"$f":"'Fiche organisateur N_2'!L24","v":0},{"$f":"N_10!$E$48","v":"-"}]
[null,11,{"$f":"'Fiche organisateur N_2'!C25","v":0},{"$f":"'Fiche organisateur N_2'!D25","v":0},{"$f":"'Fiche organisateur N_2'!E25","v":0},{"$f":"'Fiche organisateur N_2'!F25","v":0},{"$f":"'Fiche organisateur N_2'!H25","v":0},{"$f":"'Fiche organisateur N_2'!I25","v":0},{"$f":"'Fiche organisateur N_2'!J25","v":0},{"$f":"'Fiche organisateur N_2'!K25","v":0},{"$f":"'Fiche organisateur N_2'!L25","v":0},{"$f":"N_11!$E$48","v":"-"}]
[null,12,{"$f":"'Fiche organisateur N_2'!C26","v":0},{"$f":"'Fiche organisateur N_2'!D26","v":0},{"$f":"'Fiche organisateur N_2'!E26","v":0},{"$f":"'Fiche organisateur N_2'!F26","v":0},{"$f":"'Fiche organisateur N_2'!H26","v":0},{"$f":"'Fiche organisateur N_2'!I26","v":0},{"$f":"'Fiche organisateur N_2'!J26","v":0},{"$f":"'Fiche organisateur N_2'!K26","v":0},{"$f":"'Fiche organisateur N_2'!L26","v":0},{"$f":"N_12!$E$48","v":"-"}]
[null,13,{"$f":"'Fiche organisateur N_2'!C27","v":0},{"$f":"'Fiche organisateur N_2'!D27","v":0},{"$f":"'Fiche organisateur N_2'!E27","v":0},{"$f":"'Fiche organisateur N_2'!F27","v":0},{"$f":"'Fiche organisateur N_2'!H27","v":0},{"$f":"'Fiche organisateur N_2'!I27","v":0},{"$f":"'Fiche organisateur N_2'!J27","v":0},{"$f":"'Fiche organisateur N_2'!K27","v":0},{"$f":"'Fiche organisateur N_2'!L27","v":0},{"$f":"N_13!$E$48","v":"-"}]
[null,14,{"$f":"'Fiche organisateur N_2'!C28","v":0},{"$f":"'Fiche organisateur N_2'!D28","v":0},{"$f":"'Fiche organisateur N_2'!E28","v":0},{"$f":"'Fiche organisateur N_2'!F28","v":0},{"$f":"'Fiche organisateur N_2'!H28","v":0},{"$f":"'Fiche organisateur N_2'!I28","v":0},{"$f":"'Fiche organisateur N_2'!J28","v":0},{"$f":"'Fiche organisateur N_2'!K28","v":0},{"$f":"'Fiche organisateur N_2'!L28","v":0},{"$f":"N_14!$E$48","v":"-"}]
[null,15,{"$f":"'Fiche organisateur N_2'!C29","v":0},{"$f":"'Fiche organisateur N_2'!D29","v":0},{"$f":"'Fiche organisateur N_2'!E29","v":0},{"$f":"'Fiche organisateur N_2'!F29","v":0},{"$f":"'Fiche organisateur N_2'!H29","v":0},{"$f":"'Fiche organisateur N_2'!I29","v":0},{"$f":"'Fiche organisateur N_2'!J29","v":0},{"$f":"'Fiche organisateur N_2'!K29","v":0},{"$f":"'Fiche organisateur N_2'!L29","v":0},{"$f":"N_15!$E$48","v":"-"}]
[]
[null,null,{"$f":"COUNT(F14:F28)-COUNTIF(F14:F28,\"=0\")","v":0},{"$f":"COUNT(K6:K23)-COUNTIF(K6:K23,\"=0\")","v":0},3,{"$f":"C30*E30","v":0}," <====  Montant de la redevance SCC (chèque global à l'ordre de CC/ CUNTRP)  à joindre au présent rapport"]
[]
[null,"Observations du Juge"]
[]
[null,null,null,null,null,null,"Le Juge : ",{"$f":"'Fiche organisateur N_1'!D38","v":0},null,"Signature : "]

{"sheet":"N_1","index":3,"n_rows":55,"n_cols":9,"rows_kept":55,"cut":false,"hidden":false,"merged":[[36,4,39,4],[36,5,39,5],[40,4,41,4],[40,5,41,5],[27,4,29,4],[27,5,29,5],[30,4,31,4],[30,5,31,5],[32,4,35,4],[32,5,35,5],[20,4,21,4],[20,5,21,5],[22,4,24,4],[22,5,24,5],[25,4,26,4],[25,5,26,5],[1,1,1,5],[2,1,2,5],[4,4,4,5],[5,4,6,5],[7,4,7,5],[8,4,9,5],[18,1,19,1],[18,2,19,2],[10,4,10,5],[11,4,11,5],[14,1,17,1],[14,2,17,2],[14,4,17,4],[14,5,17,5],[18,4,19,4],[18,5,19,5],[25,1,26,1],[25,2,26,2],[27,2,29,2],[20,1,21,1],[20,2,21,2],[22,1,24,1],[22,2,24,2],[36,1,39,1],[36,2,39,2],[40,1,41,1],[40,2,41,2],[30,1,31,1],[30,2,31,2],[32,1,35,1],[32,2,35,2],[52,1,52,5],[54,1,54,6],[43,1,43,3],[44,1,44,3],[44,4,44,5],[45,1,45,3],[49,1,50,1],[49,2,50,2],[47,4,47,5],[46,3,46,5]]}
[]
[null,"GRILLE D’EVALUATION DE L’EPREUVE PRATIQUE ET THEORIQUE du CACCBT"]
[null,"(Certificat d’Aptitude à la Conduite du Chien de Berger sur Troupeaux)",null,null,null,null,null,null,"Secrétariat : vous pouvez faire vos remarques dans ce cadre"]
[]
[null,null,"Nom et Prénom du conducteur :",{"$f":"'Fiche organisateur N_2'!D15","v":0},"Organisateur"]
[null,null,"Nom du chien :",{"$f":"CONCATENATE('Fiche organisateur N_2'!F15,\" _ \",'Fiche organisateur N_2'!G15)","v":" _ "},{"$f":"'Fiche organisateur N_1'!D25","v":0}]
[null,null,"Date de naissance :",{"$f":"'Fiche organisateur N_2'!I15","v":"00:00:00"}]
[null,null,"Race/S :",{"$f":"'Fiche organisateur N_2'!H15","v":0},"Lieu "]
[null,"155, Avenue Jean Jaures","N° LOF :",{"$f":"'Fiche organisateur N_2'!J15","v":0},{"$f":"'Fiche organisateur N_1'!D26","v":0}]
[null,"93 535 - AUBERVILLIERS Cedex","N° Identification :",{"$f":"'Fiche organisateur N_2'!K15","v":0}]
[null,null,"N° CT :  ",{"$f":"'Fiche organisateur N_2'!L15","v":0},"Date"]
[null,null,"NOM du formateur :",{"$f":"'Fiche organisateur N_2'!E15","v":0},{"$f":"'Fiche organisateur N_1'!D23","v":"00:00:00"}]
[null,"Le troupeau doit être constitué de 15 animaux au moins."]
[null,"EPREUVES","CRITERES D’EVALUATION","RESULTATS  (Exigés)","ACQUIS /10","NON ACQUIS =0"]
[null,"Travail en parc","Capacité à réaliser une protection et à faciliter la sortie.","Chien ne montrant ni crainte ni agressivité : "]
[null,null,null," - Marchant au pas de son maitre"]
[null,null,null," - Placé devant le conducteur ou au pied"]
[null,null,null," - Sortie dans le calme sans coupure du lot"]
[null,"Cheminement","Capacité à déplacer un lot d’animaux sur une distance d'au moins 200m et comportant un virage à droite et un à gauche."," - Placement du chien n’entraînant pas de fuite  du lot",null,"Eliminatoire"]
[null,null,null," - Déplacement contrôlé, fluide et sans hâte."]
[null,"Passages étroits","Capacité à faire franchir un obstacle selon les indications de l'examinateur."," - Anticipation"]
[null,null,null," - Placement et distance du chien adaptés à la situation"]
[null,"Stabilisation","Capacité à immobiliser un lot d’animaux","Manœuvre de placement dans l’espace prévu cohérente : "]
[null,null,null," - Immobilisation réalisée conjointement par maître et chien"]
[null,null,null," - Immobilisation franche  durant une minute"]
[null,"Prise/Contention","Capacité, à l’aide du chien, d’attraper et contenir un animal, puis le mettre en position assise."," - Opérations réalisées dans le respect de l’animal"]
[null,null,null," - Troupeau restant contenu dans l’espace prévu lors de la prise"]
[null,"Recherche/Amenée","Capacité à travailler à distance\nCapacité à rassembler et amener un lot d’animaux vers le conducteur."," - Départ de la recherche  sur ordre du conducteur",null,"Eliminatoire"]
[null,"Distance 80 / 100m",null," - Contournement suffisant"]
[null,null,null," - Amenée sans bousculade ni dispersion et sans changement radical de direction."]
[null,"Rentrée en parc","Capacité à maitriser les entrées en bâtiment"," - Approche de la porte sous contrôle"]
[null,null,null," - Placement du binôme judicieux permettant une entrée sans bousculade."]
[null,"Technique de conduite du troupeau","Maitrise du conducteur"," - Respect des animaux"]
[null,null,null," - Autorité sans autoritarisme"]
[null,null,null," - Commandements appropriés"]
[null,null,null," - Gestion cohérente des difficultés du parcours"]
[null,"Connaissances théoriques du conducteur","Connaissance des animaux concernés et du cadre des concours"," - Connaissance du règlement des concours sur troupeau"]
[null,null,null," - Connaissance des grands types de races ovines et de leurs particularités"]
[null,null,null," - Connaissances générales sur l’anatomie du chien, sa préparation à l’effort et ses limites physiques."]
[null,null,null," - Connaissances générales sur l’anatomie et le comportement du mouton : faire/ ne pas faire à cet animal."]
[null,"Niveau de dressage du chien","Aptitudes naturelles et niveau de dressage du chien."," - Chien travaillant sans contrainte et faisant preuve d’initiative                                                                                                                                                                                                                                                                                                                        - Chien courageux et sans agressivité"]
[null,null,null," - Chien ayant acquis les ordres de base et répondant à ces ordres sans relance systématique"]
[null,null,null,null,{"$f":"SUM(E15:E42)","v":0},{"$f":"SUM(F15:F42)","v":0}]
[null,"Interprétation du travail réalisé par le binôme homme-chien."]
[null,null,null,null,{"$f":"IF((E43)=0,\"-\",E43)","v":"-"},{"$f":"IF(COUNT(G45:N45)=0,\"-\",G45+I45+K45+M45-E45)","v":"-"}]
[]
[null,null,null,"Résultat < 70 POINTS Ajourné ou Refusé"]
[null,"NOM DU JUGE : ",{"$f":"'Fiche organisateur N_1'!D38","v":0},null,{"$f":"IF(E45=\"-\",\"-\",IF(E45>69.999,\"APTE\",IF(E45>0.1,\"AJOURNE\",IF(E45=0,\"REFUSE\"))))","v":"-"}]
[null,"Lieu et date de l'examen :",{"$f":"CONCATENATE('Fiche organisateur N_1'!D26,\", le \",TEXT('Fiche organisateur N_1'!D23,\"jj.mm.aaaa\"))","v":", le 00.01.1900"}]
[null,"Signature du juge : "]
[]
[null,null,null,null,{"$f":"IF(E48=\"X\",\"APTE\",IF(E49=\"X\",\"AJOURNE\",IF(E50=\"X\",\"REFUSE\",\"-\")))","v":"-"}]
[null,"Sous réserve de ne pas avoir été « Refusé » ou « Ajourné », ce certificat autorise son titulaire à demander la délivrance de la Licence d’Utilisateur autorisant l’engagement du chien, ci-dessus désigné, en niveau I des concours Inter-Races de chiens de berger sur troupeaux d'ovins."]
[]
[null,"Secrétariat CUNTRP : Henri CORNIER 1239 chemin du BOSQUE 40600 BISCARROSSE Tèl: 06 32 69 08 71\nMail : secretariat.cuntrp@orange.fr\n"]

{"sheet":"N_2","index":4,"n_rows":55,"n_cols":9,"rows_kept":55,"cut":false,"hidden":false,"merged":[[22,5,24,5],[25,5,26,5],[27,5,29,5],[30,5,31,5],[32,5,35,5],[1,1,1,5],[2,1,2,5],[4,4,4,5],[5,4,6,5],[7,4,7,5],[8,4,9,5],[10,4,10,5],[11,4,11,5],[14,1,17,1],[14,2,17,2],[14,4,17,4],[14,5,17,5],[18,1,19,1],[18,2,19,2],[18,4,19,4],[18,5,19,5],[20,1,21,1],[20,2,21,2],[20,4,21,4],[20,5,21,5],[36,5,39,5],[30,1,31,1],[30,2,31,2],[30,4,31,4],[22,1,24,1],[22,2,24,2],[22,4,24,4],[25,1,26,1],[25,2,26,2],[25,4,26,4],[32,4,35,4],[36,1,39,1],[36,2,39,2],[36,4,39,4],[27,2,29,2],[27,4,29,4],[43,1,43,3],[44,1,44,3],[45,1,45,3],[49,1,50,1],[32,1,35,1],[32,2,35,2],[52,1,52,5],[54,1,54,5],[46,3,46,5],[49,2,50,2],[40,1,41,1],[40,2,41,2],[40,4,41,4],[40,5,41,5],[44,4,44,5],[47,4,47,5]]}
[]
[null,"GRILLE D’EVALUATION DE L’EPREUVE PRATIQUE ET THEORIQUE du CACCBT"]
[null,"(Certificat d’Aptitude à la Conduite du Chien de Berger sur Troupeaux)",null,null,null,null,null,null,"Secrétariat : vous pouvez faire vos remarques dans ce cadre"]
[]
[null,null,"Nom et Prénom du conducteur :",{"$f":"'Fiche organisateur N_2'!D16","v":0},"Organisateur"]
[null,null,"Nom du chien :",{"$f":"CONCATENATE('Fiche organisateur N_2'!F16,\" _ \",'Fiche organisateur N_2'!G16)","v":" _ "},{"$f":"'Fiche organisateur N_1'!D25","v":0}]
[null,null,"Date de naissance :",{"$f":"'Fiche organisateur N_2'!I16","v":"00:00:00"}]
[null,null,"Race/S :",{"$f":"'Fiche organisateur N_2'!H16","v":0},"Lieu "]
[null,"155, Avenue Jean Jaures","N° LOF :",{"$f":"'Fiche organisateur N_2'!J16","v":0},{"$f":"'Fiche organisateur N_1'!D26","v":0}]
[null,"93 535 - AUBERVILLIERS Cedex","N° Identification :",{"$f":"'Fiche organisateur N_2'!K16","v":0}]
[null,null,"N° CT :  ",{"$f":"'Fiche organisateur N_2'!L16","v":0},"Date"]
[null,null,"NOM du formateur :",{"$f":"'Fiche organisateur N_2'!E16","v":0},{"$f":"'Fiche organisateur N_1'!D23","v":"00:00:00"}]
[null,"Le troupeau doit être constitué de 15 animaux au moins."]
[null,"EPREUVES","CRITERES D’EVALUATION","RESULTATS  (Exigés)","ACQUIS /10","NON ACQUIS =0"]
[null,"Travail en parc","Capacité à réaliser une protection et à faciliter la sortie.","Chien ne montrant ni crainte ni agressivité : "]
[null,null,null," - Marchant au pas de son maitre"]
[null,null,null," - Placé devant le conducteur ou au pied"]
[null,null,null," - Sortie dans le calme sans coupure du lot"]
[null,"Cheminement","Capacité à déplacer un lot d’animaux sur une distance d'au moins 200m et comportant un virage à droite et un à gauche."," - Placement du chien n’entraînant pas de fuite  du lot",null,"Eliminatoire"]
[null,null,null," - Déplacement contrôlé, fluide et sans hâte."]
[null,"Passages étroits","Capacité à faire franchir un obstacle selon les indications de l'examinateur."," - Anticipation"]
[null,null,null," - Placement et distance du chien adaptés à la situation"]
[null,"Stabilisation","Capacité à immobiliser un lot d’animaux","Manœuvre de placement dans l’espace prévu cohérente : "]
[null,null,null," - Immobilisation réalisée conjointement par maître et chien"]
[null,null,null," - Immobilisation franche  durant une minute"]
[null,"Prise/Contention","Capacité, à l’aide du chien, d’attraper et contenir un animal, puis le mettre en position assise."," - Opérations réalisées dans le respect de l’animal"]
[null,null,null," - Troupeau restant contenu dans l’espace prévu lors de la prise"]
[null,"Recherche/Amenée","Capacité à travailler à distance\nCapacité à rassembler et amener un lot d’animaux vers le conducteur."," - Départ de la recherche  sur ordre du conducteur",null,"Eliminatoire"]
[null,"Distance 80 / 100m",null," - Contournement suffisant"]
[null,null,null," - Amenée sans bousculade ni dispersion et sans changement radical de direction."]
[null,"Rentrée en parc","Capacité à maitriser les entrées en bâtiment"," - Approche de la porte sous contrôle"]
[null,null,null," - Placement du binôme judicieux permettant une entrée sans bousculade."]
[null,"Technique de conduite du troupeau","Maitrise du conducteur"," - Respect des animaux"]
[null,null,null," - Autorité sans autoritarisme"]
[null,null,null," - Commandements appropriés"]
[null,null,null," - Gestion cohérente des difficultés du parcours"]
[null,"Connaissances théoriques du conducteur","Connaissance des animaux concernés et du cadre des concours"," - Connaissance du règlement des concours sur troupeau"]
[null,null,null," - Connaissance des grands types de races ovines et de leurs particularités"]
[null,null,null," - Connaissances générales sur l’anatomie du chien, sa préparation à l’effort et ses limites physiques."]
[null,null,null," - Connaissances générales sur l’anatomie et le comportement du mouton : faire/ ne pas faire à cet animal."]
[null,"Niveau de dressage du chien","Aptitudes naturelles et niveau de dressage du chien."," - Chien travaillant sans contrainte et faisant preuve d’initiative                                                                                                                                                                                                                                                                                                                        - Chien courageux et sans agressivité"]
[null,null,null," - Chien ayant acquis les ordres de base et répondant à ces ordres sans relance systématique"]
[null,null,null,null,{"$f":"SUM(E15:E42)","v":0},{"$f":"SUM(F15:F42)","v":0}]
[null,"Interprétation du travail réalisé par le binôme homme-chien."]
[null,null,null,null,{"$f":"IF((E43)=0,\"-\",E43)","v":"-"},{"$f":"IF(COUNT(G45:N45)=0,\"-\",G45+I45+K45+M45-E45)","v":"-"}]
[]
[null,null,null,"Résultat < 70 POINTS Ajourné ou Refusé"]
[null,"NOM DU JUGE : ",{"$f":"'Fiche organisateur N_1'!D38","v":0},null,{"$f":"IF(E45=\"-\",\"-\",IF(E45>69.999,\"APTE\",IF(E45>0.1,\"AJOURNE\",IF(E45=0,\"REFUSE\"))))","v":"-"}]
[null,"Lieu et date de l'examen :",{"$f":"CONCATENATE('Fiche organisateur N_1'!D26,\", le \",TEXT('Fiche organisateur N_1'!D23,\"jj.mm.aaaa\"))","v":", le 00.01.1900"}]
[null,"Signature du juge : "]
[]
[null,null,null,null,{"$f":"IF(E48=\"X\",\"APTE\",IF(E49=\"X\",\"AJOURNE\",IF(E50=\"X\",\"REFUSE\",\"-\")))","v":"-"}]
[null,"Sous réserve de ne pas avoir été « Refusé » ou « Ajourné », ce certificat autorise son titulaire à demander la délivrance de la Licence d’Utilisateur autorisant l’engagement du chien, ci-dessus désigné, en niveau I des concours Inter-Races de chiens de berger sur troupeaux d'ovins."]
[]
[null,"Secrétariat CUNTRP : Henri CORNIER 1239 chemin du BOSQUE 40600 BISCARROSSE Tèl: 06 32 69 08 71\nMail : secretariat.cuntrp@orange.fr\n"]

{"sheet":"N_3","index":5,"n_rows":55,"n_cols":9,"rows_kept":55,"cut":false,"hidden":false,"merged":[[10,4,10,5],[11,4,11,5],[14,1,17,1],[44,4,44,5],[1,1,1,5],[2,1,2,5],[4,4,4,5],[5,4,6,5],[7,4,7,5],[8,4,9,5],[14,2,17,2],[14,4,17,4],[14,5,17,5],[18,1,19,1],[18,2,19,2],[18,4,19,4],[18,5,19,5],[20,1,21,1],[20,2,21,2],[20,4,21,4],[20,5,21,5],[22,1,24,1],[22,2,24,2],[22,4,24,4],[22,5,24,5],[25,1,26,1],[25,2,26,2],[25,4,26,4],[25,5,26,5],[27,2,29,2],[27,4,29,4],[27,5,29,5],[30,1,31,1],[30,2,31,2],[30,4,31,4],[30,5,31,5],[32,1,35,1],[32,2,35,2],[32,4,35,4],[32,5,35,5],[36,1,39,1],[36,2,39,2],[36,4,39,4],[36,5,39,5],[40,1,41,1],[40,2,41,2],[40,4,41,4],[40,5,41,5],[52,1,52,5],[54,1,54,6],[43,1,43,3],[44,1,44,3],[45,1,45,3],[49,1,50,1],[49,2,50,2],[46,3,46,5],[47,4,47,5]]}
[]
[null,"GRILLE D’EVALUATION DE L’EPREUVE PRATIQUE ET THEORIQUE du CACCBT"]
[null,"(Certificat d’Aptitude à la Conduite du Chien de Berger sur Troupeaux)",null,null,null,null,null,null,"Secrétariat : vous pouvez faire vos remarques dans ce cadre"]
[]
[null,null,"Nom et Prénom du conducteur :",{"$f":"'Fiche organisateur N_2'!D17","v":0},"Organisateur"]
[null,null,"Nom du chien :",{"$f":"CONCATENATE('Fiche organisateur N_2'!F17,\" _ \",'Fiche organisateur N_2'!G17)","v":" _ "},{"$f":"'Fiche organisateur N_2'!G3","v":0}]
[null,null,"Date de naissance :",{"$f":"'Fiche organisateur N_2'!I17","v":"00:00:00"}]
[null,null,"Race/S :",{"$f":"'Fiche organisateur N_2'!H17","v":0},"Lieu "]
[null,"155, Avenue Jean Jaures","N° LOF :",{"$f":"'Fiche organisateur N_2'!J17","v":0},{"$f":"'Fiche organisateur N_1'!D26","v":0}]
[null,"93 535 - AUBERVILLIERS Cedex","N° Identification :",{"$f":"'Fiche organisateur N_2'!K17","v":0}]
[null,null,"N° CT :  ",{"$f":"'Fiche organisateur N_2'!L17","v":0},"Date"]
[null,null,"NOM du formateur :",{"$f":"'Fiche organisateur N_2'!E17","v":0},{"$f":"'Fiche organisateur N_1'!D23","v":"00:00:00"}]
[null,"Le troupeau doit être constitué de 15 animaux au moins."]
[null,"EPREUVES","CRITERES D’EVALUATION","RESULTATS  (Exigés)","ACQUIS /10","NON ACQUIS =0"]
[null,"Travail en parc","Capacité à réaliser une protection et à faciliter la sortie.","Chien ne montrant ni crainte ni agressivité : "]
[null,null,null," - Marchant au pas de son maitre"]
[null,null,null," - Placé devant le conducteur ou au pied"]
[null,null,null," - Sortie dans le calme sans coupure du lot"]
[null,"Cheminement","Capacité à déplacer un lot d’animaux sur une distance d'au moins 200m et comportant un virage à droite et un à gauche."," - Placement du chien n’entraînant pas de fuite  du lot",null,"Eliminatoire"]
[null,null,null," - Déplacement contrôlé, fluide et sans hâte."]
[null,"Passages étroits","Capacité à faire franchir un obstacle selon les indications de l'examinateur."," - Anticipation"]
[null,null,null," - Placement et distance du chien adaptés à la situation"]
[null,"Stabilisation","Capacité à immobiliser un lot d’animaux","Manœuvre de placement dans l’espace prévu cohérente : "]
[null,null,null," - Immobilisation réalisée conjointement par maître et chien"]
[null,null,null," - Immobilisation franche  durant une minute"]
[null,"Prise/Contention","Capacité, à l’aide du chien, d’attraper et contenir un animal, puis le mettre en position assise."," - Opérations réalisées dans le respect de l’animal"]
[null,null,null," - Troupeau restant contenu dans l’espace prévu lors de la prise"]
[null,"Recherche/Amenée","Capacité à travailler à distance\nCapacité à rassembler et amener un lot d’animaux vers le conducteur."," - Départ de la recherche  sur ordre du conducteur",null,"Eliminatoire"]
[null,"Distance 80 / 100m",null," - Contournement suffisant"]
[null,null,null," - Amenée sans bousculade ni dispersion et sans changement radical de direction."]
[null,"Rentrée en parc","Capacité à maitriser les entrées en bâtiment"," - Approche de la porte sous contrôle"]
[null,null,null," - Placement du binôme judicieux permettant une entrée sans bousculade."]
[null,"Technique de conduite du troupeau","Maitrise du conducteur"," - Respect des animaux"]
[null,null,null," - Autorité sans autoritarisme"]
[null,null,null," - Commandements appropriés"]
[null,null,null," - Gestion cohérente des difficultés du parcours"]
[null,"Connaissances théoriques du conducteur","Connaissance des animaux concernés et du cadre des concours"," - Connaissance du règlement des concours sur troupeau"]
[null,null,null," - Connaissance des grands types de races ovines et de leurs particularités"]
[null,null,null," - Connaissances générales sur l’anatomie du chien, sa préparation à l’effort et ses limites physiques."]
[null,null,null," - Connaissances générales sur l’anatomie et le comportement du mouton : faire/ ne pas faire à cet animal."]
[null,"Niveau de dressage du chien","Aptitudes naturelles et niveau de dressage du chien."," - Chien travaillant sans contrainte et faisant preuve d’initiative                                                                                                                                                                                                                                                                                                                        - Chien courageux et sans agressivité"]
[null,null,null," - Chien ayant acquis les ordres de base et répondant à ces ordres sans relance systématique"]
[null,null,null,null,{"$f":"SUM(E15:E42)","v":0},{"$f":"SUM(F15:F42)","v":0}]
[null,"Interprétation du travail réalisé par le binôme homme-chien."]
[null,null,null,null,{"$f":"IF((E43)=0,\"-\",E43)","v":"-"},{"$f":"IF(COUNT(G45:N45)=0,\"-\",G45+I45+K45+M45-E45)","v":"-"}]
[]
[null,null,null,"Résultat < 70 POINTS Ajourné ou Refusé"]
[null,"NOM DU JUGE : ",{"$f":"'Fiche organisateur N_1'!D38","v":0},null,{"$f":"IF(E45=\"-\",\"-\",IF(E45>69.999,\"APTE\",IF(E45>0.1,\"AJOURNE\",IF(E45=0,\"REFUSE\"))))","v":"-"}]
[null,"Lieu et date de l'examen :",{"$f":"CONCATENATE('Fiche organisateur N_1'!D26,\", le \",TEXT('Fiche organisateur N_1'!D23,\"jj.mm.aaaa\"))","v":", le 00.01.1900"}]
[null,"Signature du juge : "]
[]
[null,null,null,null,{"$f":"IF(E48=\"X\",\"APTE\",IF(E49=\"X\",\"AJOURNE\",IF(E50=\"X\",\"REFUSE\",\"-\")))","v":"-"}]
[null,"Sous réserve de ne pas avoir été « Refusé » ou « Ajourné », ce certificat autorise son titulaire à demander la délivrance de la Licence d’Utilisateur autorisant l’engagement du chien, ci-dessus désigné, en niveau I des concours Inter-Races de chiens de berger sur troupeaux d'ovins."]
[]
[null,"Secrétariat CUNTRP : Henri CORNIER 1239 chemin du BOSQUE 40600 BISCARROSSE Tèl: 06 32 69 08 71\nMail : secretariat.cuntrp@orange.fr\n"]

{"sheet":"N_4","index":6,"n_rows":55,"n_cols":9,"rows_kept":55,"cut":false,"hidden":false,"merged":[[1,1,1,5],[2,1,2,5],[4,4,4,5],[5,4,6,5],[7,4,7,5],[8,4,9,5],[10,4,10,5],[11,4,11,5],[14,1,17,1],[14,2,17,2],[14,4,17,4],[14,5,17,5],[18,1,19,1],[18,2,19,2],[18,4,19,4],[18,5,19,5],[20,1,21,1],[20,2,21,2],[20,4,21,4],[20,5,21,5],[22,1,24,1],[22,2,24,2],[22,4,24,4],[22,5,24,5],[25,1,26,1],[25,2,26,2],[25,4,26,4],[25,5,26,5],[36,4,39,4],[36,5,39,5],[27,2,29,2],[27,4,29,4],[27,5,29,5],[30,1,31,1],[30,2,31,2],[30,4,31,4],[30,5,31,5],[44,4,44,5],[49,2,50,2],[46,3,46,5],[47,4,47,5],[32,1,35,1],[32,2,35,2],[32,4,35,4],[32,5,35,5],[36,1,39,1],[36,2,39,2],[40,1,41,1],[40,2,41,2],[40,4,41,4],[40,5,41,5],[52,1,52,5],[54,1,54,6],[43,1,43,3],[44,1,44,3],[45,1,45,3],[49,1,50,1]]}
[]
[null,"GRILLE D’EVALUATION DE L’EPREUVE PRATIQUE ET THEORIQUE du CACCBT"]
[null,"(Certificat d’Aptitude à la Conduite du Chien de Berger sur Troupeaux)",null,null,null,null,null,null,"Secrétariat : vous pouvez faire vos remarques dans ce cadre"]
[]
[null,null,"Nom et Prénom du conducteur :",{"$f":"'Fiche organisateur N_2'!D18","v":0},"Organisateur"]
[null,null,"Nom du chien :",{"$f":"CONCATENATE('Fiche organisateur N_2'!F18,\" _ \",'Fiche organisateur N_2'!G18)","v":" _ "},{"$f":"'Fiche organisateur N_2'!G3","v":0}]
[null,null,"Date de naissance :",{"$f":"'Fiche organisateur N_2'!I18","v":"00:00:00"}]
[null,null,"Race/S :",{"$f":"'Fiche organisateur N_2'!H18","v":0},"Lieu "]
[null,"155, Avenue Jean Jaures","N° LOF :",{"$f":"'Fiche organisateur N_2'!J18","v":0},{"$f":"'Fiche organisateur N_1'!D26","v":0}]
[null,"93 535 - AUBERVILLIERS Cedex","N° Identification :",{"$f":"'Fiche organisateur N_2'!K18","v":0}]
[null,null,"N° CT :  ",{"$f":"'Fiche organisateur N_2'!L18","v":0},"Date"]
[null,null,"NOM du formateur :",{"$f":"'Fiche organisateur N_2'!E18","v":0},{"$f":"'Fiche organisateur N_1'!D23","v":"00:00:00"}]
[null,"Le troupeau doit être constitué de 15 animaux au moins."]
[null,"EPREUVES","CRITERES D’EVALUATION","RESULTATS  (Exigés)","ACQUIS /10","NON ACQUIS =0"]
[null,"Travail en parc","Capacité à réaliser une protection et à faciliter la sortie.","Chien ne montrant ni crainte ni agressivité : "]
[null,null,null," - Marchant au pas de son maitre"]
[null,null,null," - Placé devant le conducteur ou au pied"]
[null,null,null," - Sortie dans le calme sans coupure du lot"]
[null,"Cheminement","Capacité à déplacer un lot d’animaux sur une distance d'au moins 200m et comportant un virage à droite et un à gauche."," - Placement du chien n’entraînant pas de fuite  du lot",null,"Eliminatoire"]
[null,null,null," - Déplacement contrôlé, fluide et sans hâte."]
[null,"Passages étroits","Capacité à faire franchir un obstacle selon les indications de l'examinateur."," - Anticipation"]
[null,null,null," - Placement et distance du chien adaptés à la situation"]
[null,"Stabilisation","Capacité à immobiliser un lot d’animaux","Manœuvre de placement dans l’espace prévu cohérente : "]
[null,null,null," - Immobilisation réalisée conjointement par maître et chien"]
[null,null,null," - Immobilisation franche  durant une minute"]
[null,"Prise/Contention","Capacité, à l’aide du chien, d’attraper et contenir un animal, puis le mettre en position assise."," - Opérations réalisées dans le respect de l’animal"]
[null,null,null," - Troupeau restant contenu dans l’espace prévu lors de la prise"]
[null,"Recherche/Amenée","Capacité à travailler à distance\nCapacité à rassembler et amener un lot d’animaux vers le conducteur."," - Départ de la recherche  sur ordre du conducteur",null,"Eliminatoire"]
[null,"Distance 80 / 100m",null," - Contournement suffisant"]
[null,null,null," - Amenée sans bousculade ni dispersion et sans changement radical de direction."]
[null,"Rentrée en parc","Capacité à maitriser les entrées en bâtiment"," - Approche de la porte sous contrôle"]
[null,null,null," - Placement du binôme judicieux permettant une entrée sans bousculade."]
[null,"Technique de conduite du troupeau","Maitrise du conducteur"," - Respect des animaux"]
[null,null,null," - Autorité sans autoritarisme"]
[null,null,null," - Commandements appropriés"]
[null,null,null," - Gestion cohérente des difficultés du parcours"]
[null,"Connaissances théoriques du conducteur","Connaissance des animaux concernés et du cadre des concours"," - Connaissance du règlement des concours sur troupeau"]
[null,null,null," - Connaissance des grands types de races ovines et de leurs particularités"]
[null,null,null," - Connaissances générales sur l’anatomie du chien, sa préparation à l’effort et ses limites physiques."]
[null,null,null," - Connaissances générales sur l’anatomie et le comportement du mouton : faire/ ne pas faire à cet animal."]
[null,"Niveau de dressage du chien","Aptitudes naturelles et niveau de dressage du chien."," - Chien travaillant sans contrainte et faisant preuve d’initiative                                                                                                                                                                                                                                                                                                                        - Chien courageux et sans agressivité"]
[null,null,null," - Chien ayant acquis les ordres de base et répondant à ces ordres sans relance systématique"]
[null,null,null,null,{"$f":"SUM(E15:E42)","v":0},{"$f":"SUM(F15:F42)","v":0}]
[null,"Interprétation du travail réalisé par le binôme homme-chien."]
[null,null,null,null,{"$f":"IF((E43)=0,\"-\",E43)","v":"-"},{"$f":"IF(COUNT(G45:N45)=0,\"-\",G45+I45+K45+M45-E45)","v":"-"}]
[]
[null,null,null,"Résultat < 70 POINTS Ajourné ou Refusé"]
[null,"NOM DU JUGE : ",{"$f":"'Fiche organisateur N_1'!D38","v":0},null,{"$f":"IF(E45=\"-\",\"-\",IF(E45>69.999,\"APTE\",IF(E45>0.1,\"AJOURNE\",IF(E45=0,\"REFUSE\"))))","v":"-"}]
[null,"Lieu et date de l'examen :",{"$f":"CONCATENATE('Fiche organisateur N_1'!D26,\", le \",TEXT('Fiche organisateur N_1'!D23,\"jj.mm.aaaa\"))","v":", le 00.01.1900"}]
[null,"Signature du juge : "]
[]
[null,null,null,null,{"$f":"IF(E48=\"X\",\"APTE\",IF(E49=\"X\",\"AJOURNE\",IF(E50=\"X\",\"REFUSE\",\"-\")))","v":"-"}]
[null,"Sous réserve de ne pas avoir été « Refusé » ou « Ajourné », ce certificat autorise son titulaire à demander la délivrance de la Licence d’Utilisateur autorisant l’engagement du chien, ci-dessus désigné, en niveau I des concours Inter-Races de chiens de berger sur troupeaux d'ovins."]
[]
[null,"Secrétariat CUNTRP : Henri CORNIER 1239 chemin du BOSQUE 40600 BISCARROSSE Tèl: 06 32 69 08 71\nMail : secretariat.cuntrp@orange.fr\n"]

{"sheet":"N_5","index":7,"n_rows":55,"n_cols":9,"rows_kept":55,"cut":false,"hidden":false,"merged":[[1,1,1,5],[2,1,2,5],[4,4,4,5],[5,4,6,5],[7,4,7,5],[8,4,9,5],[10,4,10,5],[11,4,11,5],[14,1,17,1],[14,2,17,2],[14,4,17,4],[14,5,17,5],[18,1,19,1],[18,2,19,2],[18,4,19,4],[18,5,19,5],[20,1,21,1],[20,2,21,2],[20,4,21,4],[20,5,21,5],[22,1,24,1],[22,2,24,2],[22,4,24,4],[22,5,24,5],[25,1,26,1],[25,2,26,2],[25,4,26,4],[25,5,26,5],[36,4,39,4],[36,5,39,5],[27,2,29,2],[27,4,29,4],[27,5,29,5],[30,1,31,1],[30,2,31,2],[30,4,31,4],[30,5,31,5],[44,4,44,5],[49,2,50,2],[46,3,46,5],[47,4,47,5],[32,1,35,1],[32,2,35,2],[32,4,35,4],[32,5,35,5],[36,1,39,1],[36,2,39,2],[40,1,41,1],[40,2,41,2],[40,4,41,4],[40,5,41,5],[52,1,52,5],[54,1,54,6],[43,1,43,3],[44,1,44,3],[45,1,45,3],[49,1,50,1]]}
[]
[null,"GRILLE D’EVALUATION DE L’EPREUVE PRATIQUE ET THEORIQUE du CACCBT"]
[null,"(Certificat d’Aptitude à la Conduite du Chien de Berger sur Troupeaux)",null,null,null,null,null,null,"Secrétariat : vous pouvez faire vos remarques dans ce cadre"]
[]
[null,null,"Nom et Prénom du conducteur :",{"$f":"'Fiche organisateur N_2'!D19","v":0},"Organisateur"]
[null,null,"Nom du chien :",{"$f":"CONCATENATE('Fiche organisateur N_2'!F19,\" _ \",'Fiche organisateur N_2'!G19)","v":" _ "},{"$f":"'Fiche organisateur N_2'!G3","v":0}]
[null,null,"Date de naissance :",{"$f":"'Fiche organisateur N_2'!I19","v":"00:00:00"}]
[null,null,"Race/S :",{"$f":"'Fiche organisateur N_2'!H19","v":0},"Lieu "]
[null,"155, Avenue Jean Jaures","N° LOF :",{"$f":"'Fiche organisateur N_2'!J19","v":0},{"$f":"'Fiche organisateur N_1'!D26","v":0}]
[null,"93 535 - AUBERVILLIERS Cedex","N° Identification :",{"$f":"'Fiche organisateur N_2'!K19","v":0}]
[null,null,"N° CT :  ",{"$f":"'Fiche organisateur N_2'!L19","v":0},"Date"]
[null,null,"NOM du formateur :",{"$f":"'Fiche organisateur N_2'!E19","v":0},{"$f":"'Fiche organisateur N_1'!D23","v":"00:00:00"}]
[null,"Le troupeau doit être constitué de 15 animaux au moins."]
[null,"EPREUVES","CRITERES D’EVALUATION","RESULTATS  (Exigés)","ACQUIS /10","NON ACQUIS =0"]
[null,"Travail en parc","Capacité à réaliser une protection et à faciliter la sortie.","Chien ne montrant ni crainte ni agressivité : "]
[null,null,null," - Marchant au pas de son maitre"]
[null,null,null," - Placé devant le conducteur ou au pied"]
[null,null,null," - Sortie dans le calme sans coupure du lot"]
[null,"Cheminement","Capacité à déplacer un lot d’animaux sur une distance d'au moins 200m et comportant un virage à droite et un à gauche."," - Placement du chien n’entraînant pas de fuite  du lot",null,"Eliminatoire"]
[null,null,null," - Déplacement contrôlé, fluide et sans hâte."]
[null,"Passages étroits","Capacité à faire franchir un obstacle selon les indications de l'examinateur."," - Anticipation"]
[null,null,null," - Placement et distance du chien adaptés à la situation"]
[null,"Stabilisation","Capacité à immobiliser un lot d’animaux","Manœuvre de placement dans l’espace prévu cohérente : "]
[null,null,null," - Immobilisation réalisée conjointement par maître et chien"]
[null,null,null," - Immobilisation franche  durant une minute"]
[null,"Prise/Contention","Capacité, à l’aide du chien, d’attraper et contenir un animal, puis le mettre en position assise."," - Opérations réalisées dans le respect de l’animal"]
[null,null,null," - Troupeau restant contenu dans l’espace prévu lors de la prise"]
[null,"Recherche/Amenée","Capacité à travailler à distance\nCapacité à rassembler et amener un lot d’animaux vers le conducteur."," - Départ de la recherche  sur ordre du conducteur",null,"Eliminatoire"]
[null,"Distance 80 / 100m",null," - Contournement suffisant"]
[null,null,null," - Amenée sans bousculade ni dispersion et sans changement radical de direction."]
[null,"Rentrée en parc","Capacité à maitriser les entrées en bâtiment"," - Approche de la porte sous contrôle"]
[null,null,null," - Placement du binôme judicieux permettant une entrée sans bousculade."]
[null,"Technique de conduite du troupeau","Maitrise du conducteur"," - Respect des animaux"]
[null,null,null," - Autorité sans autoritarisme"]
[null,null,null," - Commandements appropriés"]
[null,null,null," - Gestion cohérente des difficultés du parcours"]
[null,"Connaissances théoriques du conducteur","Connaissance des animaux concernés et du cadre des concours"," - Connaissance du règlement des concours sur troupeau"]
[null,null,null," - Connaissance des grands types de races ovines et de leurs particularités"]
[null,null,null," - Connaissances générales sur l’anatomie du chien, sa préparation à l’effort et ses limites physiques."]
[null,null,null," - Connaissances générales sur l’anatomie et le comportement du mouton : faire/ ne pas faire à cet animal."]
[null,"Niveau de dressage du chien","Aptitudes naturelles et niveau de dressage du chien."," - Chien travaillant sans contrainte et faisant preuve d’initiative                                                                                                                                                                                                                                                                                                                        - Chien courageux et sans agressivité"]
[null,null,null," - Chien ayant acquis les ordres de base et répondant à ces ordres sans relance systématique"]
[null,null,null,null,{"$f":"SUM(E15:E42)","v":0},{"$f":"SUM(F15:F42)","v":0}]
[null,"Interprétation du travail réalisé par le binôme homme-chien."]
[null,null,null,null,{"$f":"IF((E43)=0,\"-\",E43)","v":"-"},{"$f":"IF(COUNT(G45:N45)=0,\"-\",G45+I45+K45+M45-E45)","v":"-"}]
[]
[null,null,null,"Résultat < 70 POINTS Ajourné ou Refusé"]
[null,"NOM DU JUGE : ",{"$f":"'Fiche organisateur N_1'!D38","v":0},null,{"$f":"IF(E45=\"-\",\"-\",IF(E45>69.999,\"APTE\",IF(E45>0.1,\"AJOURNE\",IF(E45=0,\"REFUSE\"))))","v":"-"}]
[null,"Lieu et date de l'examen :",{"$f":"CONCATENATE('Fiche organisateur N_1'!D26,\", le \",TEXT('Fiche organisateur N_1'!D23,\"jj.mm.aaaa\"))","v":", le 00.01.1900"}]
[null,"Signature du juge : "]
[]
[null,null,null,null,{"$f":"IF(E48=\"X\",\"APTE\",IF(E49=\"X\",\"AJOURNE\",IF(E50=\"X\",\"REFUSE\",\"-\")))","v":"-"}]
[null,"Sous réserve de ne pas avoir été « Refusé » ou « Ajourné », ce certificat autorise son titulaire à demander la délivrance de la Licence d’Utilisateur autorisant l’engagement du chien, ci-dessus désigné, en niveau I des concours Inter-Races de chiens de berger sur troupeaux d'ovins."]
[]
[null,"Secrétariat CUNTRP : Henri CORNIER 1239 chemin du BOSQUE 40600 BISCARROSSE Tèl: 06 32 69 08 71\nMail : secretariat.cuntrp@orange.fr\n"]

{"sheet":"N_6","index":8,"n_rows":55,"n_cols":8,"rows_kept":55,"cut":false,"hidden":false,"merged":[[1,1,1,5],[2,1,2,5],[4,4,4,5],[5,4,6,5],[7,4,7,5],[8,4,9,5],[10,4,10,5],[11,4,11,5],[14,1,17,1],[14,2,17,2],[14,4,17,4],[14,5,17,5],[18,1,19,1],[18,2,19,2],[18,4,19,4],[18,5,19,5],[20,1,21,1],[20,2,21,2],[20,4,21,4],[20,5,21,5],[22,1,24,1],[22,2,24,2],[22,4,24,4],[22,5,24,5],[25,1,26,1],[25,2,26,2],[25,4,26,4],[25,5,26,5],[36,4,39,4],[36,5,39,5],[27,2,29,2],[27,4,29,4],[27,5,29,5],[30,1,31,1],[30,2,31,2],[30,4,31,4],[30,5,31,5],[44,4,44,5],[49,2,50,2],[46,3,46,5],[47,4,47,5],[32,1,35,1],[32,2,35,2],[32,4,35,4],[32,5,35,5],[36,1,39,1],[36,2,39,2],[40,1,41,1],[40,2,41,2],[40,4,41,4],[40,5,41,5],[52,1,52,5],[54,1,54,6],[43,1,43,3],[44,1,44,3],[45,1,45,3],[49,1,50,1]]}
[]
[null,"GRILLE D’EVALUATION DE L’EPREUVE PRATIQUE ET THEORIQUE du CACCBT"]
[null,"(Certificat d’Aptitude à la Conduite du Chien de Berger sur Troupeaux)",null,null,null,null,null,"Secrétariat : vous pouvez faire vos remarques dans ce cadre"]
[]
[null,null,"Nom et Prénom du conducteur :",{"$f":"'Fiche organisateur N_2'!D20","v":0},"Organisateur"]
[null,null,"Nom du chien :",{"$f":"CONCATENATE('Fiche organisateur N_2'!F20,\" _ \",'Fiche organisateur N_2'!G20)","v":" _ "},{"$f":"'Fiche organisateur N_2'!G3","v":0}]
[null,null,"Date de naissance :",{"$f":"'Fiche organisateur N_2'!I20","v":"00:00:00"}]
[null,null,"Race/S :",{"$f":"'Fiche organisateur N_2'!H20","v":0},"Lieu "]
[null,"155, Avenue Jean Jaures","N° LOF :",{"$f":"'Fiche organisateur N_2'!J20","v":0},{"$f":"'Fiche organisateur N_1'!D26","v":0}]
[null,"93 535 - AUBERVILLIERS Cedex","N° Identification :",{"$f":"'Fiche organisateur N_2'!K20","v":0}]
[null,null,"N° CT :  ",{"$f":"'Fiche organisateur N_2'!L20","v":0},"Date"]
[null,null,"NOM du formateur :",{"$f":"'Fiche organisateur N_2'!E20","v":0},{"$f":"'Fiche organisateur N_1'!D23","v":"00:00:00"}]
[null,"Le troupeau doit être constitué de 15 animaux au moins."]
[null,"EPREUVES","CRITERES D’EVALUATION","RESULTATS  (Exigés)","ACQUIS /10","NON ACQUIS =0"]
[null,"Travail en parc","Capacité à réaliser une protection et à faciliter la sortie.","Chien ne montrant ni crainte ni agressivité : "]
[null,null,null," - Marchant au pas de son maitre"]
[null,null,null," - Placé devant le conducteur ou au pied"]
[null,null,null," - Sortie dans le calme sans coupure du lot"]
[null,"Cheminement","Capacité à déplacer un lot d’animaux sur une distance d'au moins 200m et comportant un virage à droite et un à gauche."," - Placement du chien n’entraînant pas de fuite  du lot",null,"Eliminatoire"]
[null,null,null," - Déplacement contrôlé, fluide et sans hâte."]
[null,"Passages étroits","Capacité à faire franchir un obstacle selon les indications de l'examinateur."," - Anticipation"]
[null,null,null," - Placement et distance du chien adaptés à la situation"]
[null,"Stabilisation","Capacité à immobiliser un lot d’animaux","Manœuvre de placement dans l’espace prévu cohérente : "]
[null,null,null," - Immobilisation réalisée conjointement par maître et chien"]
[null,null,null," - Immobilisation franche  durant une minute"]
[null,"Prise/Contention","Capacité, à l’aide du chien, d’attraper et contenir un animal, puis le mettre en position assise."," - Opérations réalisées dans le respect de l’animal"]
[null,null,null," - Troupeau restant contenu dans l’espace prévu lors de la prise"]
[null,"Recherche/Amenée","Capacité à travailler à distance\nCapacité à rassembler et amener un lot d’animaux vers le conducteur."," - Départ de la recherche  sur ordre du conducteur",null,"Eliminatoire"]
[null,"Distance 80 / 100m",null," - Contournement suffisant"]
[null,null,null," - Amenée sans bousculade ni dispersion et sans changement radical de direction."]
[null,"Rentrée en parc","Capacité à maitriser les entrées en bâtiment"," - Approche de la porte sous contrôle"]
[null,null,null," - Placement du binôme judicieux permettant une entrée sans bousculade."]
[null,"Technique de conduite du troupeau","Maitrise du conducteur"," - Respect des animaux"]
[null,null,null," - Autorité sans autoritarisme"]
[null,null,null," - Commandements appropriés"]
[null,null,null," - Gestion cohérente des difficultés du parcours"]
[null,"Connaissances théoriques du conducteur","Connaissance des animaux concernés et du cadre des concours"," - Connaissance du règlement des concours sur troupeau"]
[null,null,null," - Connaissance des grands types de races ovines et de leurs particularités"]
[null,null,null," - Connaissances générales sur l’anatomie du chien, sa préparation à l’effort et ses limites physiques."]
[null,null,null," - Connaissances générales sur l’anatomie et le comportement du mouton : faire/ ne pas faire à cet animal."]
[null,"Niveau de dressage du chien","Aptitudes naturelles et niveau de dressage du chien."," - Chien travaillant sans contrainte et faisant preuve d’initiative                                                                                                                                                                                                                                                                                                                        - Chien courageux et sans agressivité"]
[null,null,null," - Chien ayant acquis les ordres de base et répondant à ces ordres sans relance systématique"]
[null,null,null,null,{"$f":"SUM(E15:E42)","v":0},0]
[null,"Interprétation du travail réalisé par le binôme homme-chien."]
[null,null,null,null,{"$f":"IF((E43)=0,\"-\",E43)","v":"-"},{"$f":"IF(COUNT(G45:N45)=0,\"-\",G45+I45+K45+M45-E45)","v":"-"}]
[]
[null,null,null,"Résultat < 70 POINTS Ajourné ou Refusé"]
[null,"NOM DU JUGE : ",{"$f":"'Fiche organisateur N_1'!D38","v":0},null,{"$f":"IF(E45=\"-\",\"-\",IF(E45>69.999,\"APTE\",IF(E45>0.1,\"AJOURNE\",IF(E45=0,\"REFUSE\"))))","v":"-"}]
[null,"Lieu et date de l'examen :",{"$f":"CONCATENATE('Fiche organisateur N_1'!D26,\", le \",TEXT('Fiche organisateur N_1'!D23,\"jj.mm.aaaa\"))","v":", le 00.01.1900"}]
[null,"Signature du juge : "]
[]
[null,null,null,null,{"$f":"IF(E48=\"X\",\"APTE\",IF(E49=\"X\",\"AJOURNE\",IF(E50=\"X\",\"REFUSE\",\"-\")))","v":"-"}]
[null,"Sous réserve de ne pas avoir été « Refusé » ou « Ajourné », ce certificat autorise son titulaire à demander la délivrance de la Licence d’Utilisateur autorisant l’engagement du chien, ci-dessus désigné, en niveau I des concours Inter-Races de chiens de berger sur troupeaux d'ovins."]
[]
[null,"Secrétariat CUNTRP : Henri CORNIER 1239 chemin du BOSQUE 40600 BISCARROSSE Tèl: 06 32 69 08 71\nMail : secretariat.cuntrp@orange.fr\n"]

{"sheet":"N_7","index":9,"n_rows":55,"n_cols":9,"rows_kept":55,"cut":false,"hidden":false,"merged":[[1,1,1,5],[2,1,2,5],[4,4,4,5],[5,4,6,5],[7,4,7,5],[8,4,9,5],[10,4,10,5],[11,4,11,5],[14,1,17,1],[14,2,17,2],[14,4,17,4],[14,5,17,5],[18,1,19,1],[18,2,19,2],[18,4,19,4],[18,5,19,5],[20,1,21,1],[20,2,21,2],[20,4,21,4],[20,5,21,5],[22,1,24,1],[22,2,24,2],[22,4,24,4],[22,5,24,5],[25,1,26,1],[25,2,26,2],[25,4,26,4],[25,5,26,5],[36,4,39,4],[36,5,39,5],[27,2,29,2],[27,4,29,4],[27,5,29,5],[30,1,31,1],[30,2,31,2],[30,4,31,4],[30,5,31,5],[44,4,44,5],[49,2,50,2],[46,3,46,5],[47,4,47,5],[32,1,35,1],[32,2,35,2],[32,4,35,4],[32,5,35,5],[36,1,39,1],[36,2,39,2],[40,1,41,1],[40,2,41,2],[40,4,41,4],[40,5,41,5],[52,1,52,5],[54,1,54,6],[43,1,43,3],[44,1,44,3],[45,1,45,3],[49,1,50,1]]}
[]
[null,"GRILLE D’EVALUATION DE L’EPREUVE PRATIQUE ET THEORIQUE du CACCBT"]
[null,"(Certificat d’Aptitude à la Conduite du Chien de Berger sur Troupeaux)",null,null,null,null,null,null,"Secrétariat : vous pouvez faire vos remarques dans ce cadre"]
[]
[null,null,"Nom et Prénom du conducteur :",{"$f":"'Fiche organisateur N_2'!D21","v":0},"Organisateur"]
[null,null,"Nom du chien :",{"$f":"CONCATENATE('Fiche organisateur N_2'!F21,\" _ \",'Fiche organisateur N_2'!G21)","v":" _ "},{"$f":"'Fiche organisateur N_2'!G3","v":0}]
[null,null,"Date de naissance :",{"$f":"'Fiche organisateur N_2'!I21","v":"00:00:00"}]
[null,null,"Race/S :",{"$f":"'Fiche organisateur N_2'!H21","v":0},"Lieu "]
[null,"155, Avenue Jean Jaures","N° LOF :",{"$f":"'Fiche organisateur N_2'!J21","v":0},{"$f":"'Fiche organisateur N_1'!D26","v":0}]
[null,"93 535 - AUBERVILLIERS Cedex","N° Identification :",{"$f":"'Fiche organisateur N_2'!K21","v":0}]
[null,null,"N° CT :  ",{"$f":"'Fiche organisateur N_2'!L21","v":0},"Date"]
[null,null,"NOM du formateur :",{"$f":"'Fiche organisateur N_2'!E21","v":0},{"$f":"'Fiche organisateur N_1'!D23","v":"00:00:00"}]
[null,"Le troupeau doit être constitué de 15 animaux au moins."]
[null,"EPREUVES","CRITERES D’EVALUATION","RESULTATS  (Exigés)","ACQUIS /10","NON ACQUIS =0"]
[null,"Travail en parc","Capacité à réaliser une protection et à faciliter la sortie.","Chien ne montrant ni crainte ni agressivité : "]
[null,null,null," - Marchant au pas de son maitre"]
[null,null,null," - Placé devant le conducteur ou au pied"]
[null,null,null," - Sortie dans le calme sans coupure du lot"]
[null,"Cheminement","Capacité à déplacer un lot d’animaux sur une distance d'au moins 200m et comportant un virage à droite et un à gauche."," - Placement du chien n’entraînant pas de fuite  du lot",null,"Eliminatoire"]
[null,null,null," - Déplacement contrôlé, fluide et sans hâte."]
[null,"Passages étroits","Capacité à faire franchir un obstacle selon les indications de l'examinateur."," - Anticipation"]
[null,null,null," - Placement et distance du chien adaptés à la situation"]
[null,"Stabilisation","Capacité à immobiliser un lot d’animaux","Manœuvre de placement dans l’espace prévu cohérente : "]
[null,null,null," - Immobilisation réalisée conjointement par maître et chien"]
[null,null,null," - Immobilisation franche  durant une minute"]
[null,"Prise/Contention","Capacité, à l’aide du chien, d’attraper et contenir un animal, puis le mettre en position assise."," - Opérations réalisées dans le respect de l’animal"]
[null,null,null," - Troupeau restant contenu dans l’espace prévu lors de la prise"]
[null,"Recherche/Amenée","Capacité à travailler à distance\nCapacité à rassembler et amener un lot d’animaux vers le conducteur."," - Départ de la recherche  sur ordre du conducteur",null,"Eliminatoire"]
[null,"Distance 80 / 100m",null," - Contournement suffisant"]
[null,null,null," - Amenée sans bousculade ni dispersion et sans changement radical de direction."]
[null,"Rentrée en parc","Capacité à maitriser les entrées en bâtiment"," - Approche de la porte sous contrôle"]
[null,null,null," - Placement du binôme judicieux permettant une entrée sans bousculade."]
[null,"Technique de conduite du troupeau","Maitrise du conducteur"," - Respect des animaux"]
[null,null,null," - Autorité sans autoritarisme"]
[null,null,null," - Commandements appropriés"]
[null,null,null," - Gestion cohérente des difficultés du parcours"]
[null,"Connaissances théoriques du conducteur","Connaissance des animaux concernés et du cadre des concours"," - Connaissance du règlement des concours sur troupeau"]
[null,null,null," - Connaissance des grands types de races ovines et de leurs particularités"]
[null,null,null," - Connaissances générales sur l’anatomie du chien, sa préparation à l’effort et ses limites physiques."]
[null,null,null," - Connaissances générales sur l’anatomie et le comportement du mouton : faire/ ne pas faire à cet animal."]
[null,"Niveau de dressage du chien","Aptitudes naturelles et niveau de dressage du chien."," - Chien travaillant sans contrainte et faisant preuve d’initiative                                                                                                                                                                                                                                                                                                                        - Chien courageux et sans agressivité"]
[null,null,null," - Chien ayant acquis les ordres de base et répondant à ces ordres sans relance systématique"]
[null,null,null,null,{"$f":"SUM(E15:E42)","v":0},{"$f":"SUM(F15:F42)","v":0}]
[null,"Interprétation du travail réalisé par le binôme homme-chien."]
[null,null,null,null,{"$f":"IF((E43)=0,\"-\",E43)","v":"-"},{"$f":"IF(COUNT(G45:N45)=0,\"-\",G45+I45+K45+M45-E45)","v":"-"}]
[]
[null,null,null,"Résultat < 70 POINTS Ajourné ou Refusé"]
[null,"NOM DU JUGE : ",{"$f":"'Fiche organisateur N_1'!D38","v":0},null,{"$f":"IF(E45=\"-\",\"-\",IF(E45>69.999,\"APTE\",IF(E45>0.1,\"AJOURNE\",IF(E45=0,\"REFUSE\"))))","v":"-"}]
[null,"Lieu et date de l'examen :",{"$f":"CONCATENATE('Fiche organisateur N_1'!D26,\", le \",TEXT('Fiche organisateur N_1'!D23,\"jj.mm.aaaa\"))","v":", le 00.01.1900"}]
[null,"Signature du juge : "]
[]
[null,null,null,null,{"$f":"IF(E48=\"X\",\"APTE\",IF(E49=\"X\",\"AJOURNE\",IF(E50=\"X\",\"REFUSE\",\"-\")))","v":"-"}]
[null,"Sous réserve de ne pas avoir été « Refusé » ou « Ajourné », ce certificat autorise son titulaire à demander la délivrance de la Licence d’Utilisateur autorisant l’engagement du chien, ci-dessus désigné, en niveau I des concours Inter-Races de chiens de berger sur troupeaux d'ovins."]
[]
[null,"Secrétariat CUNTRP : Henri CORNIER 1239 chemin du BOSQUE 40600 BISCARROSSE Tèl: 06 32 69 08 71\nMail : secretariat.cuntrp@orange.fr\n"]

{"sheet":"N_8","index":10,"n_rows":55,"n_cols":9,"rows_kept":55,"cut":false,"hidden":false,"merged":[[1,1,1,5],[2,1,2,5],[4,4,4,5],[5,4,6,5],[7,4,7,5],[8,4,9,5],[10,4,10,5],[11,4,11,5],[14,1,17,1],[14,2,17,2],[14,4,17,4],[14,5,17,5],[18,1,19,1],[18,2,19,2],[18,4,19,4],[18,5,19,5],[20,1,21,1],[20,2,21,2],[20,4,21,4],[20,5,21,5],[22,1,24,1],[22,2,24,2],[22,4,24,4],[22,5,24,5],[25,1,26,1],[25,2,26,2],[25,4,26,4],[25,5,26,5],[36,4,39,4],[36,5,39,5],[27,2,29,2],[27,4,29,4],[27,5,29,5],[30,1,31,1],[30,2,31,2],[30,4,31,4],[30,5,31,5],[44,4,44,5],[49,2,50,2],[46,3,46,5],[47,4,47,5],[32,1,35,1],[32,2,35,2],[32,4,35,4],[32,5,35,5],[36,1,39,1],[36,2,39,2],[40,1,41,1],[40,2,41,2],[40,4,41,4],[40,5,41,5],[52,1,52,5],[54,1,54,6],[43,1,43,3],[44,1,44,3],[45,1,45,3],[49,1,50,1]]}
[]
[null,"GRILLE D’EVALUATION DE L’EPREUVE PRATIQUE ET THEORIQUE du CACCBT"]
[null,"(Certificat d’Aptitude à la Conduite du Chien de Berger sur Troupeaux)",null,null,null,null,null,null,"Secrétariat : vous pouvez faire vos remarques dans ce cadre"]
[]
[null,null,"Nom et Prénom du conducteur :",{"$f":"'Fiche organisateur N_2'!D22","v":0},"Organisateur"]
[null,null,"Nom du chien :",{"$f":"CONCATENATE('Fiche organisateur N_2'!F22,\" _ \",'Fiche organisateur N_2'!G22)","v":" _ "},{"$f":"'Fiche organisateur N_2'!G3","v":0}]
[null,null,"Date de naissance :",{"$f":"'Fiche organisateur N_2'!I22","v":"00:00:00"}]
[null,null,"Race/S :",{"$f":"'Fiche organisateur N_2'!H22","v":0},"Lieu "]
[null,"155, Avenue Jean Jaures","N° LOF :",{"$f":"'Fiche organisateur N_2'!J22","v":0},{"$f":"'Fiche organisateur N_1'!D26","v":0}]
[null,"93 535 - AUBERVILLIERS Cedex","N° Identification :",{"$f":"'Fiche organisateur N_2'!K22","v":0}]
[null,null,"N° CT :  ",{"$f":"'Fiche organisateur N_2'!L22","v":0},"Date"]
[null,null,"NOM du formateur :",{"$f":"'Fiche organisateur N_2'!E22","v":0},{"$f":"'Fiche organisateur N_1'!D23","v":"00:00:00"}]
[null,"Le troupeau doit être constitué de 15 animaux au moins."]
[null,"EPREUVES","CRITERES D’EVALUATION","RESULTATS  (Exigés)","ACQUIS /10","NON ACQUIS =0"]
[null,"Travail en parc","Capacité à réaliser une protection et à faciliter la sortie.","Chien ne montrant ni crainte ni agressivité : "]
[null,null,null," - Marchant au pas de son maitre"]
[null,null,null," - Placé devant le conducteur ou au pied"]
[null,null,null," - Sortie dans le calme sans coupure du lot"]
[null,"Cheminement","Capacité à déplacer un lot d’animaux sur une distance d'au moins 200m et comportant un virage à droite et un à gauche."," - Placement du chien n’entraînant pas de fuite  du lot",null,"Eliminatoire"]
[null,null,null," - Déplacement contrôlé, fluide et sans hâte."]
[null,"Passages étroits","Capacité à faire franchir un obstacle selon les indications de l'examinateur."," - Anticipation"]
[null,null,null," - Placement et distance du chien adaptés à la situation"]
[null,"Stabilisation","Capacité à immobiliser un lot d’animaux","Manœuvre de placement dans l’espace prévu cohérente : "]
[null,null,null," - Immobilisation réalisée conjointement par maître et chien"]
[null,null,null," - Immobilisation franche  durant une minute"]
[null,"Prise/Contention","Capacité, à l’aide du chien, d’attraper et contenir un animal, puis le mettre en position assise."," - Opérations réalisées dans le respect de l’animal"]
[null,null,null," - Troupeau restant contenu dans l’espace prévu lors de la prise"]
[null,"Recherche/Amenée","Capacité à travailler à distance\nCapacité à rassembler et amener un lot d’animaux vers le conducteur."," - Départ de la recherche  sur ordre du conducteur",null,"Eliminatoire"]
[null,"Distance 80 / 100m",null," - Contournement suffisant"]
[null,null,null," - Amenée sans bousculade ni dispersion et sans changement radical de direction."]
[null,"Rentrée en parc","Capacité à maitriser les entrées en bâtiment"," - Approche de la porte sous contrôle"]
[null,null,null," - Placement du binôme judicieux permettant une entrée sans bousculade."]
[null,"Technique de conduite du troupeau","Maitrise du conducteur"," - Respect des animaux"]
[null,null,null," - Autorité sans autoritarisme"]
[null,null,null," - Commandements appropriés"]
[null,null,null," - Gestion cohérente des difficultés du parcours"]
[null,"Connaissances théoriques du conducteur","Connaissance des animaux concernés et du cadre des concours"," - Connaissance du règlement des concours sur troupeau"]
[null,null,null," - Connaissance des grands types de races ovines et de leurs particularités"]
[null,null,null," - Connaissances générales sur l’anatomie du chien, sa préparation à l’effort et ses limites physiques."]
[null,null,null," - Connaissances générales sur l’anatomie et le comportement du mouton : faire/ ne pas faire à cet animal."]
[null,"Niveau de dressage du chien","Aptitudes naturelles et niveau de dressage du chien."," - Chien travaillant sans contrainte et faisant preuve d’initiative                                                                                                                                                                                                                                                                                                                        - Chien courageux et sans agressivité"]
[null,null,null," - Chien ayant acquis les ordres de base et répondant à ces ordres sans relance systématique"]
[null,null,null,null,{"$f":"SUM(E15:E42)","v":0},{"$f":"SUM(F15:F42)","v":0}]
[null,"Interprétation du travail réalisé par le binôme homme-chien."]
[null,null,null,null,{"$f":"IF((E43)=0,\"-\",E43)","v":"-"},{"$f":"IF(COUNT(G45:N45)=0,\"-\",G45+I45+K45+M45-E45)","v":"-"}]
[]
[null,null,null,"Résultat < 70 POINTS Ajourné ou Refusé"]
[null,"NOM DU JUGE : ",{"$f":"'Fiche organisateur N_1'!D38","v":0},null,{"$f":"IF(E45=\"-\",\"-\",IF(E45>69.999,\"APTE\",IF(E45>0.1,\"AJOURNE\",IF(E45=0,\"REFUSE\"))))","v":"-"}]
[null,"Lieu et date de l'examen :",{"$f":"CONCATENATE('Fiche organisateur N_1'!D26,\", le \",TEXT('Fiche organisateur N_1'!D23,\"jj.mm.aaaa\"))","v":", le 00.01.1900"}]
[null,"Signature du juge : "]
[]
[null,null,null,null,{"$f":"IF(E48=\"X\",\"APTE\",IF(E49=\"X\",\"AJOURNE\",IF(E50=\"X\",\"REFUSE\",\"-\")))","v":"-"}]
[null,"Sous réserve de ne pas avoir été « Refusé » ou « Ajourné », ce certificat autorise son titulaire à demander la délivrance de la Licence d’Utilisateur autorisant l’engagement du chien, ci-dessus désigné, en niveau I des concours Inter-Races de chiens de berger sur troupeaux d'ovins."]
[]
[null,"Secrétariat CUNTRP : Henri CORNIER 1239 chemin du BOSQUE 40600 BISCARROSSE Tèl: 06 32 69 08 71\nMail : secretariat.cuntrp@orange.fr\n"]

{"sheet":"N_9","index":11,"n_rows":55,"n_cols":9,"rows_kept":55,"cut":false,"hidden":false,"merged":[[1,1,1,5],[2,1,2,5],[4,4,4,5],[5,4,6,5],[7,4,7,5],[8,4,9,5],[10,4,10,5],[11,4,11,5],[14,1,17,1],[14,2,17,2],[14,4,17,4],[14,5,17,5],[18,1,19,1],[18,2,19,2],[18,4,19,4],[18,5,19,5],[20,1,21,1],[20,2,21,2],[20,4,21,4],[20,5,21,5],[22,1,24,1],[22,2,24,2],[22,4,24,4],[22,5,24,5],[25,1,26,1],[25,2,26,2],[25,4,26,4],[25,5,26,5],[36,4,39,4],[36,5,39,5],[27,2,29,2],[27,4,29,4],[27,5,29,5],[30,1,31,1],[30,2,31,2],[30,4,31,4],[30,5,31,5],[44,4,44,5],[49,2,50,2],[46,3,46,5],[47,4,47,5],[32,1,35,1],[32,2,35,2],[32,4,35,4],[32,5,35,5],[36,1,39,1],[36,2,39,2],[40,1,41,1],[40,2,41,2],[40,4,41,4],[40,5,41,5],[52,1,52,5],[54,1,54,6],[43,1,43,3],[44,1,44,3],[45,1,45,3],[49,1,50,1]]}
[]
[null,"GRILLE D’EVALUATION DE L’EPREUVE PRATIQUE ET THEORIQUE du CACCBT"]
[null,"(Certificat d’Aptitude à la Conduite du Chien de Berger sur Troupeaux)",null,null,null,null,null,null,"Secrétariat : vous pouvez faire vos remarques dans ce cadre"]
[]
[null,null,"Nom et Prénom du conducteur :",{"$f":"'Fiche organisateur N_2'!D23","v":0},"Organisateur"]
[null,null,"Nom du chien :",{"$f":"CONCATENATE('Fiche organisateur N_2'!F23,\" _ \",'Fiche organisateur N_2'!G23)","v":" _ "},{"$f":"'Fiche organisateur N_2'!G3","v":0}]
[null,null,"Date de naissance :",{"$f":"'Fiche organisateur N_2'!I23","v":"00:00:00"}]
[null,null,"Race/S :",{"$f":"'Fiche organisateur N_2'!H23","v":0},"Lieu "]
[null,"155, Avenue Jean Jaures","N° LOF :",{"$f":"'Fiche organisateur N_2'!J23","v":0},{"$f":"'Fiche organisateur N_1'!D26","v":0}]
[null,"93 535 - AUBERVILLIERS Cedex","N° Identification :",{"$f":"'Fiche organisateur N_2'!K23","v":0}]
[null,null,"N° CT :  ",{"$f":"'Fiche organisateur N_2'!L23","v":0},"Date"]
[null,null,"NOM du formateur :",{"$f":"'Fiche organisateur N_2'!E23","v":0},{"$f":"'Fiche organisateur N_1'!D23","v":"00:00:00"}]
[null,"Le troupeau doit être constitué de 15 animaux au moins."]
[null,"EPREUVES","CRITERES D’EVALUATION","RESULTATS  (Exigés)","ACQUIS /10","NON ACQUIS =0"]
[null,"Travail en parc","Capacité à réaliser une protection et à faciliter la sortie.","Chien ne montrant ni crainte ni agressivité : "]
[null,null,null," - Marchant au pas de son maitre"]
[null,null,null," - Placé devant le conducteur ou au pied"]
[null,null,null," - Sortie dans le calme sans coupure du lot"]
[null,"Cheminement","Capacité à déplacer un lot d’animaux sur une distance d'au moins 200m et comportant un virage à droite et un à gauche."," - Placement du chien n’entraînant pas de fuite  du lot",null,"Eliminatoire"]
[null,null,null," - Déplacement contrôlé, fluide et sans hâte."]
[null,"Passages étroits","Capacité à faire franchir un obstacle selon les indications de l'examinateur."," - Anticipation"]
[null,null,null," - Placement et distance du chien adaptés à la situation"]
[null,"Stabilisation","Capacité à immobiliser un lot d’animaux","Manœuvre de placement dans l’espace prévu cohérente : "]
[null,null,null," - Immobilisation réalisée conjointement par maître et chien"]
[null,null,null," - Immobilisation franche  durant une minute"]
[null,"Prise/Contention","Capacité, à l’aide du chien, d’attraper et contenir un animal, puis le mettre en position assise."," - Opérations réalisées dans le respect de l’animal"]
[null,null,null," - Troupeau restant contenu dans l’espace prévu lors de la prise"]
[null,"Recherche/Amenée","Capacité à travailler à distance\nCapacité à rassembler et amener un lot d’animaux vers le conducteur."," - Départ de la recherche  sur ordre du conducteur",null,"Eliminatoire"]
[null,"Distance 80 / 100m",null," - Contournement suffisant"]
[null,null,null," - Amenée sans bousculade ni dispersion et sans changement radical de direction."]
[null,"Rentrée en parc","Capacité à maitriser les entrées en bâtiment"," - Approche de la porte sous contrôle"]
[null,null,null," - Placement du binôme judicieux permettant une entrée sans bousculade."]
[null,"Technique de conduite du troupeau","Maitrise du conducteur"," - Respect des animaux"]
[null,null,null," - Autorité sans autoritarisme"]
[null,null,null," - Commandements appropriés"]
[null,null,null," - Gestion cohérente des difficultés du parcours"]
[null,"Connaissances théoriques du conducteur","Connaissance des animaux concernés et du cadre des concours"," - Connaissance du règlement des concours sur troupeau"]
[null,null,null," - Connaissance des grands types de races ovines et de leurs particularités"]
[null,null,null," - Connaissances générales sur l’anatomie du chien, sa préparation à l’effort et ses limites physiques."]
[null,null,null," - Connaissances générales sur l’anatomie et le comportement du mouton : faire/ ne pas faire à cet animal."]
[null,"Niveau de dressage du chien","Aptitudes naturelles et niveau de dressage du chien."," - Chien travaillant sans contrainte et faisant preuve d’initiative                                                                                                                                                                                                                                                                                                                        - Chien courageux et sans agressivité"]
[null,null,null," - Chien ayant acquis les ordres de base et répondant à ces ordres sans relance systématique"]
[null,null,null,null,{"$f":"SUM(E15:E42)","v":0},{"$f":"SUM(F15:F42)","v":0}]
[null,"Interprétation du travail réalisé par le binôme homme-chien."]
[null,null,null,null,{"$f":"IF((E43)=0,\"-\",E43)","v":"-"},{"$f":"IF(COUNT(G45:N45)=0,\"-\",G45+I45+K45+M45-E45)","v":"-"}]
[]
[null,null,null,"Résultat < 70 POINTS Ajourné ou Refusé"]
[null,"NOM DU JUGE : ",{"$f":"'Fiche organisateur N_1'!D38","v":0},null,{"$f":"IF(E45=\"-\",\"-\",IF(E45>69.999,\"APTE\",IF(E45>0.1,\"AJOURNE\",IF(E45=0,\"REFUSE\"))))","v":"-"}]
[null,"Lieu et date de l'examen :",{"$f":"CONCATENATE('Fiche organisateur N_1'!D26,\", le \",TEXT('Fiche organisateur N_1'!D23,\"jj.mm.aaaa\"))","v":", le 00.01.1900"}]
[null,"Signature du juge : "]
[]
[null,null,null,null,{"$f":"IF(E48=\"X\",\"APTE\",IF(E49=\"X\",\"AJOURNE\",IF(E50=\"X\",\"REFUSE\",\"-\")))","v":"-"}]
[null,"Sous réserve de ne pas avoir été « Refusé » ou « Ajourné », ce certificat autorise son titulaire à demander la délivrance de la Licence d’Utilisateur autorisant l’engagement du chien, ci-dessus désigné, en niveau I des concours Inter-Races de chiens de berger sur troupeaux d'ovins."]
[]
[null,"Secrétariat CUNTRP : Henri CORNIER 1239 chemin du BOSQUE 40600 BISCARROSSE Tèl: 06 32 69 08 71\nMail : secretariat.cuntrp@orange.fr\n"]

{"sheet":"N_10","index":12,"n_rows":55,"n_cols":9,"rows_kept":55,"cut":false,"hidden":false,"merged":[[1,1,1,5],[2,1,2,5],[4,4,4,5],[5,4,6,5],[7,4,7,5],[8,4,9,5],[10,4,10,5],[11,4,11,5],[14,1,17,1],[14,2,17,2],[14,4,17,4],[14,5,17,5],[18,1,19,1],[18,2,19,2],[18,4,19,4],[18,5,19,5],[20,1,21,1],[20,2,21,2],[20,4,21,4],[20,5,21,5],[22,1,24,1],[22,2,24,2],[22,4,24,4],[22,5,24,5],[25,1,26,1],[25,2,26,2],[25,4,26,4],[25,5,26,5],[36,4,39,4],[36,5,39,5],[27,2,29,2],[27,4,29,4],[27,5,29,5],[30,1,31,1],[30,2,31,2],[30,4,31,4],[30,5,31,5],[44,4,44,5],[49,2,50,2],[46,3,46,5],[47,4,47,5],[32,1,35,1],[32,2,35,2],[32,4,35,4],[32,5,35,5],[36,1,39,1],[36,2,39,2],[40,1,41,1],[40,2,41,2],[40,4,41,4],[40,5,41,5],[52,1,52,5],[54,1,54,6],[43,1,43,3],[44,1,44,3],[45,1,45,3],[49,1,50,1]]}
[]
[null,"GRILLE D’EVALUATION DE L’EPREUVE PRATIQUE ET THEORIQUE du CACCBT"]
[null,"(Certificat d’Aptitude à la Conduite du Chien de Berger sur Troupeaux)",null,null,null,null,null,null,"Secrétariat : vous pouvez faire vos remarques dans ce cadre"]
[]
[null,null,"Nom et Prénom du conducteur :",{"$f":"'Fiche organisateur N_2'!D24","v":0},"Organisateur"]
[null,null,"Nom du chien :",{"$f":"CONCATENATE('Fiche organisateur N_2'!F24,\" _ \",'Fiche organisateur N_2'!G24)","v":" _ "},{"$f":"'Fiche organisateur N_2'!G3","v":0}]
[null,null,"Date de naissance :",{"$f":"'Fiche organisateur N_2'!I24","v":"00:00:00"}]
[null,null,"Race/S :",{"$f":"'Fiche organisateur N_2'!H24","v":0},"Lieu "]
[null,"155, Avenue Jean Jaures","N° LOF :",{"$f":"'Fiche organisateur N_2'!J24","v":0},{"$f":"'Fiche organisateur N_1'!D26","v":0}]
[null,"93 535 - AUBERVILLIERS Cedex","N° Identification :",{"$f":"'Fiche organisateur N_2'!K24","v":0}]
[null,null,"N° CT :  ",{"$f":"'Fiche organisateur N_2'!L24","v":0},"Date"]
[null,null,"NOM du formateur :",{"$f":"'Fiche organisateur N_2'!E24","v":0},{"$f":"'Fiche organisateur N_1'!D23","v":"00:00:00"}]
[null,"Le troupeau doit être constitué de 15 animaux au moins."]
[null,"EPREUVES","CRITERES D’EVALUATION","RESULTATS  (Exigés)","ACQUIS /10","NON ACQUIS =0"]
[null,"Travail en parc","Capacité à réaliser une protection et à faciliter la sortie.","Chien ne montrant ni crainte ni agressivité : "]
[null,null,null," - Marchant au pas de son maitre"]
[null,null,null," - Placé devant le conducteur ou au pied"]
[null,null,null," - Sortie dans le calme sans coupure du lot"]
[null,"Cheminement","Capacité à déplacer un lot d’animaux sur une distance d'au moins 200m et comportant un virage à droite et un à gauche."," - Placement du chien n’entraînant pas de fuite  du lot",null,"Eliminatoire"]
[null,null,null," - Déplacement contrôlé, fluide et sans hâte."]
[null,"Passages étroits","Capacité à faire franchir un obstacle selon les indications de l'examinateur."," - Anticipation"]
[null,null,null," - Placement et distance du chien adaptés à la situation"]
[null,"Stabilisation","Capacité à immobiliser un lot d’animaux","Manœuvre de placement dans l’espace prévu cohérente : "]
[null,null,null," - Immobilisation réalisée conjointement par maître et chien"]
[null,null,null," - Immobilisation franche  durant une minute"]
[null,"Prise/Contention","Capacité, à l’aide du chien, d’attraper et contenir un animal, puis le mettre en position assise."," - Opérations réalisées dans le respect de l’animal"]
[null,null,null," - Troupeau restant contenu dans l’espace prévu lors de la prise"]
[null,"Recherche/Amenée","Capacité à travailler à distance\nCapacité à rassembler et amener un lot d’animaux vers le conducteur."," - Départ de la recherche  sur ordre du conducteur",null,"Eliminatoire"]
[null,"Distance 80 / 100m",null," - Contournement suffisant"]
[null,null,null," - Amenée sans bousculade ni dispersion et sans changement radical de direction."]
[null,"Rentrée en parc","Capacité à maitriser les entrées en bâtiment"," - Approche de la porte sous contrôle"]
[null,null,null," - Placement du binôme judicieux permettant une entrée sans bousculade."]
[null,"Technique de conduite du troupeau","Maitrise du conducteur"," - Respect des animaux"]
[null,null,null," - Autorité sans autoritarisme"]
[null,null,null," - Commandements appropriés"]
[null,null,null," - Gestion cohérente des difficultés du parcours"]
[null,"Connaissances théoriques du conducteur","Connaissance des animaux concernés et du cadre des concours"," - Connaissance du règlement des concours sur troupeau"]
[null,null,null," - Connaissance des grands types de races ovines et de leurs particularités"]
[null,null,null," - Connaissances générales sur l’anatomie du chien, sa préparation à l’effort et ses limites physiques."]
[null,null,null," - Connaissances générales sur l’anatomie et le comportement du mouton : faire/ ne pas faire à cet animal."]
[null,"Niveau de dressage du chien","Aptitudes naturelles et niveau de dressage du chien."," - Chien travaillant sans contrainte et faisant preuve d’initiative                                                                                                                                                                                                                                                                                                                        - Chien courageux et sans agressivité"]
[null,null,null," - Chien ayant acquis les ordres de base et répondant à ces ordres sans relance systématique"]
[null,null,null,null,{"$f":"SUM(E15:E42)","v":0},{"$f":"SUM(F15:F42)","v":0}]
[null,"Interprétation du travail réalisé par le binôme homme-chien."]
[null,null,null,null,{"$f":"IF((E43)=0,\"-\",E43)","v":"-"},{"$f":"IF(COUNT(G45:N45)=0,\"-\",G45+I45+K45+M45-E45)","v":"-"}]
[]
[null,null,null,"Résultat < 70 POINTS Ajourné ou Refusé"]
[null,"NOM DU JUGE : ",{"$f":"'Fiche organisateur N_1'!D38","v":0},null,{"$f":"IF(E45=\"-\",\"-\",IF(E45>69.999,\"APTE\",IF(E45>0.1,\"AJOURNE\",IF(E45=0,\"REFUSE\"))))","v":"-"}]
[null,"Lieu et date de l'examen :",{"$f":"CONCATENATE('Fiche organisateur N_1'!D26,\", le \",TEXT('Fiche organisateur N_1'!D23,\"jj.mm.aaaa\"))","v":", le 00.01.1900"}]
[null,"Signature du juge : "]
[]
[null,null,null,null,{"$f":"IF(E48=\"X\",\"APTE\",IF(E49=\"X\",\"AJOURNE\",IF(E50=\"X\",\"REFUSE\",\"-\")))","v":"-"}]
[null,"Sous réserve de ne pas avoir été « Refusé » ou « Ajourné », ce certificat autorise son titulaire à demander la délivrance de la Licence d’Utilisateur autorisant l’engagement du chien, ci-dessus désigné, en niveau I des concours Inter-Races de chiens de berger sur troupeaux d'ovins."]
[]
[null,"Secrétariat CUNTRP : Henri CORNIER 1239 chemin du BOSQUE 40600 BISCARROSSE Tèl: 06 32 69 08 71\nMail : secretariat.cuntrp@orange.fr\n"]

{"sheet":"N_11","index":13,"n_rows":55,"n_cols":9,"rows_kept":55,"cut":false,"hidden":false,"merged":[[1,1,1,5],[2,1,2,5],[4,4,4,5],[5,4,6,5],[7,4,7,5],[8,4,9,5],[10,4,10,5],[11,4,11,5],[14,1,17,1],[14,2,17,2],[14,4,17,4],[14,5,17,5],[18,1,19,1],[18,2,19,2],[18,4,19,4],[18,5,19,5],[20,1,21,1],[20,2,21,2],[20,4,21,4],[20,5,21,5],[22,1,24,1],[22,2,24,2],[22,4,24,4],[22,5,24,5],[25,1,26,1],[25,2,26,2],[25,4,26,4],[25,5,26,5],[36,4,39,4],[36,5,39,5],[27,2,29,2],[27,4,29,4],[27,5,29,5],[30,1,31,1],[30,2,31,2],[30,4,31,4],[30,5,31,5],[44,4,44,5],[49,2,50,2],[46,3,46,5],[47,4,47,5],[32,1,35,1],[32,2,35,2],[32,4,35,4],[32,5,35,5],[36,1,39,1],[36,2,39,2],[40,1,41,1],[40,2,41,2],[40,4,41,4],[40,5,41,5],[52,1,52,5],[54,1,54,6],[43,1,43,3],[44,1,44,3],[45,1,45,3],[49,1,50,1]]}
[]
[null,"GRILLE D’EVALUATION DE L’EPREUVE PRATIQUE ET THEORIQUE du CACCBT"]
[null,"(Certificat d’Aptitude à la Conduite du Chien de Berger sur Troupeaux)",null,null,null,null,null,null,"Secrétariat : vous pouvez faire vos remarques dans ce cadre"]
[]
[null,null,"Nom et Prénom du conducteur :",{"$f":"'Fiche organisateur N_2'!D25","v":0},"Organisateur"]
[null,null,"Nom du chien :",{"$f":"CONCATENATE('Fiche organisateur N_2'!F25,\" _ \",'Fiche organisateur N_2'!G25)","v":" _ "},{"$f":"'Fiche organisateur N_2'!G3","v":0}]
[null,null,"Date de naissance :",{"$f":"'Fiche organisateur N_2'!I25","v":"00:00:00"}]
[null,null,"Race/S :",{"$f":"'Fiche organisateur N_2'!H25","v":0},"Lieu "]
[null,"155, Avenue Jean Jaures","N° LOF :",{"$f":"'Fiche organisateur N_2'!J25","v":0},{"$f":"'Fiche organisateur N_1'!D26","v":0}]
[null,"93 535 - AUBERVILLIERS Cedex","N° Identification :",{"$f":"'Fiche organisateur N_2'!K25","v":0}]
[null,null,"N° CT :  ",{"$f":"'Fiche organisateur N_2'!L25","v":0},"Date"]
[null,null,"NOM du formateur :",{"$f":"'Fiche organisateur N_2'!E25","v":0},{"$f":"'Fiche organisateur N_1'!D23","v":"00:00:00"}]
[null,"Le troupeau doit être constitué de 15 animaux au moins."]
[null,"EPREUVES","CRITERES D’EVALUATION","RESULTATS  (Exigés)","ACQUIS /10","NON ACQUIS =0"]
[null,"Travail en parc","Capacité à réaliser une protection et à faciliter la sortie.","Chien ne montrant ni crainte ni agressivité : "]
[null,null,null," - Marchant au pas de son maitre"]
[null,null,null," - Placé devant le conducteur ou au pied"]
[null,null,null," - Sortie dans le calme sans coupure du lot"]
[null,"Cheminement","Capacité à déplacer un lot d’animaux sur une distance d'au moins 200m et comportant un virage à droite et un à gauche."," - Placement du chien n’entraînant pas de fuite  du lot",null,"Eliminatoire"]
[null,null,null," - Déplacement contrôlé, fluide et sans hâte."]
[null,"Passages étroits","Capacité à faire franchir un obstacle selon les indications de l'examinateur."," - Anticipation"]
[null,null,null," - Placement et distance du chien adaptés à la situation"]
[null,"Stabilisation","Capacité à immobiliser un lot d’animaux","Manœuvre de placement dans l’espace prévu cohérente : "]
[null,null,null," - Immobilisation réalisée conjointement par maître et chien"]
[null,null,null," - Immobilisation franche  durant une minute"]
[null,"Prise/Contention","Capacité, à l’aide du chien, d’attraper et contenir un animal, puis le mettre en position assise."," - Opérations réalisées dans le respect de l’animal"]
[null,null,null," - Troupeau restant contenu dans l’espace prévu lors de la prise"]
[null,"Recherche/Amenée","Capacité à travailler à distance\nCapacité à rassembler et amener un lot d’animaux vers le conducteur."," - Départ de la recherche  sur ordre du conducteur",null,"Eliminatoire"]
[null,"Distance 80 / 100m",null," - Contournement suffisant"]
[null,null,null," - Amenée sans bousculade ni dispersion et sans changement radical de direction."]
[null,"Rentrée en parc","Capacité à maitriser les entrées en bâtiment"," - Approche de la porte sous contrôle"]
[null,null,null," - Placement du binôme judicieux permettant une entrée sans bousculade."]
[null,"Technique de conduite du troupeau","Maitrise du conducteur"," - Respect des animaux"]
[null,null,null," - Autorité sans autoritarisme"]
[null,null,null," - Commandements appropriés"]
[null,null,null," - Gestion cohérente des difficultés du parcours"]
[null,"Connaissances théoriques du conducteur","Connaissance des animaux concernés et du cadre des concours"," - Connaissance du règlement des concours sur troupeau"]
[null,null,null," - Connaissance des grands types de races ovines et de leurs particularités"]
[null,null,null," - Connaissances générales sur l’anatomie du chien, sa préparation à l’effort et ses limites physiques."]
[null,null,null," - Connaissances générales sur l’anatomie et le comportement du mouton : faire/ ne pas faire à cet animal."]
[null,"Niveau de dressage du chien","Aptitudes naturelles et niveau de dressage du chien."," - Chien travaillant sans contrainte et faisant preuve d’initiative                                                                                                                                                                                                                                                                                                                        - Chien courageux et sans agressivité"]
[null,null,null," - Chien ayant acquis les ordres de base et répondant à ces ordres sans relance systématique"]
[null,null,null,null,{"$f":"SUM(E15:E42)","v":0},{"$f":"SUM(F15:F42)","v":0}]
[null,"Interprétation du travail réalisé par le binôme homme-chien."]
[null,null,null,null,{"$f":"IF((E43)=0,\"-\",E43)","v":"-"},{"$f":"IF(COUNT(G45:N45)=0,\"-\",G45+I45+K45+M45-E45)","v":"-"}]
[]
[null,null,null,"Résultat < 70 POINTS Ajourné ou Refusé"]
[null,"NOM DU JUGE : ",{"$f":"'Fiche organisateur N_1'!D38","v":0},null,{"$f":"IF(E45=\"-\",\"-\",IF(E45>69.999,\"APTE\",IF(E45>0.1,\"AJOURNE\",IF(E45=0,\"REFUSE\"))))","v":"-"}]
[null,"Lieu et date de l'examen :",{"$f":"CONCATENATE('Fiche organisateur N_1'!D26,\", le \",TEXT('Fiche organisateur N_1'!D23,\"jj.mm.aaaa\"))","v":", le 00.01.1900"}]
[null,"Signature du juge : "]
[]
[null,null,null,null,{"$f":"IF(E48=\"X\",\"APTE\",IF(E49=\"X\",\"AJOURNE\",IF(E50=\"X\",\"REFUSE\",\"-\")))","v":"-"}]
[null,"Sous réserve de ne pas avoir été « Refusé » ou « Ajourné », ce certificat autorise son titulaire à demander la délivrance de la Licence d’Utilisateur autorisant l’engagement du chien, ci-dessus désigné, en niveau I des concours Inter-Races de chiens de berger sur troupeaux d'ovins."]
[]
[null,"Secrétariat CUNTRP : Henri CORNIER 1239 chemin du BOSQUE 40600 BISCARROSSE Tèl: 06 32 69 08 71\nMail : secretariat.cuntrp@orange.fr\n"]

{"sheet":"N_12","index":14,"n_rows":55,"n_cols":9,"rows_kept":55,"cut":false,"hidden":false,"merged":[[1,1,1,5],[2,1,2,5],[4,4,4,5],[5,4,6,5],[7,4,7,5],[8,4,9,5],[10,4,10,5],[11,4,11,5],[14,1,17,1],[14,2,17,2],[14,4,17,4],[14,5,17,5],[18,1,19,1],[18,2,19,2],[18,4,19,4],[18,5,19,5],[20,1,21,1],[20,2,21,2],[20,4,21,4],[20,5,21,5],[22,1,24,1],[22,2,24,2],[22,4,24,4],[22,5,24,5],[25,1,26,1],[25,2,26,2],[25,4,26,4],[25,5,26,5],[36,4,39,4],[36,5,39,5],[27,2,29,2],[27,4,29,4],[27,5,29,5],[30,1,31,1],[30,2,31,2],[30,4,31,4],[30,5,31,5],[44,4,44,5],[49,2,50,2],[46,3,46,5],[47,4,47,5],[32,1,35,1],[32,2,35,2],[32,4,35,4],[32,5,35,5],[36,1,39,1],[36,2,39,2],[40,1,41,1],[40,2,41,2],[40,4,41,4],[40,5,41,5],[52,1,52,5],[54,1,54,6],[43,1,43,3],[44,1,44,3],[45,1,45,3],[49,1,50,1]]}
[]
[null,"GRILLE D’EVALUATION DE L’EPREUVE PRATIQUE ET THEORIQUE du CACCBT"]
[null,"(Certificat d’Aptitude à la Conduite du Chien de Berger sur Troupeaux)",null,null,null,null,null,null,"Secrétariat : vous pouvez faire vos remarques dans ce cadre"]
[]
[null,null,"Nom et Prénom du conducteur :",{"$f":"'Fiche organisateur N_2'!D26","v":0},"Organisateur"]
[null,null,"Nom du chien :",{"$f":"CONCATENATE('Fiche organisateur N_2'!F26,\" _ \",'Fiche organisateur N_2'!G26)","v":" _ "},{"$f":"'Fiche organisateur N_2'!G3","v":0}]
[null,null,"Date de naissance :",{"$f":"'Fiche organisateur N_2'!I26","v":"00:00:00"}]
[null,null,"Race/S :",{"$f":"'Fiche organisateur N_2'!H26","v":0},"Lieu "]
[null,"155, Avenue Jean Jaures","N° LOF :",{"$f":"'Fiche organisateur N_2'!J26","v":0},{"$f":"'Fiche organisateur N_1'!D26","v":0}]
[null,"93 535 - AUBERVILLIERS Cedex","N° Identification :",{"$f":"'Fiche organisateur N_2'!K26","v":0}]
[null,null,"N° CT :  ",{"$f":"'Fiche organisateur N_2'!L26","v":0},"Date"]
[null,null,"NOM du formateur :",{"$f":"'Fiche organisateur N_2'!E26","v":0},{"$f":"'Fiche organisateur N_1'!D23","v":"00:00:00"}]
[null,"Le troupeau doit être constitué de 15 animaux au moins."]
[null,"EPREUVES","CRITERES D’EVALUATION","RESULTATS  (Exigés)","ACQUIS /10","NON ACQUIS =0"]
[null,"Travail en parc","Capacité à réaliser une protection et à faciliter la sortie.","Chien ne montrant ni crainte ni agressivité : "]
[null,null,null," - Marchant au pas de son maitre"]
[null,null,null," - Placé devant le conducteur ou au pied"]
[null,null,null," - Sortie dans le calme sans coupure du lot"]
[null,"Cheminement","Capacité à déplacer un lot d’animaux sur une distance d'au moins 200m et comportant un virage à droite et un à gauche."," - Placement du chien n’entraînant pas de fuite  du lot",null,"Eliminatoire"]
[null,null,null," - Déplacement contrôlé, fluide et sans hâte."]
[null,"Passages étroits","Capacité à faire franchir un obstacle selon les indications de l'examinateur."," - Anticipation"]
[null,null,null," - Placement et distance du chien adaptés à la situation"]
[null,"Stabilisation","Capacité à immobiliser un lot d’animaux","Manœuvre de placement dans l’espace prévu cohérente : "]
[null,null,null," - Immobilisation réalisée conjointement par maître et chien"]
[null,null,null," - Immobilisation franche  durant une minute"]
[null,"Prise/Contention","Capacité, à l’aide du chien, d’attraper et contenir un animal, puis le mettre en position assise."," - Opérations réalisées dans le respect de l’animal"]
[null,null,null," - Troupeau restant contenu dans l’espace prévu lors de la prise"]
[null,"Recherche/Amenée","Capacité à travailler à distance\nCapacité à rassembler et amener un lot d’animaux vers le conducteur."," - Départ de la recherche  sur ordre du conducteur",null,"Eliminatoire"]
[null,"Distance 80 / 100m",null," - Contournement suffisant"]
[null,null,null," - Amenée sans bousculade ni dispersion et sans changement radical de direction."]
[null,"Rentrée en parc","Capacité à maitriser les entrées en bâtiment"," - Approche de la porte sous contrôle"]
[null,null,null," - Placement du binôme judicieux permettant une entrée sans bousculade."]
[null,"Technique de conduite du troupeau","Maitrise du conducteur"," - Respect des animaux"]
[null,null,null," - Autorité sans autoritarisme"]
[null,null,null," - Commandements appropriés"]
[null,null,null," - Gestion cohérente des difficultés du parcours"]
[null,"Connaissances théoriques du conducteur","Connaissance des animaux concernés et du cadre des concours"," - Connaissance du règlement des concours sur troupeau"]
[null,null,null," - Connaissance des grands types de races ovines et de leurs particularités"]
[null,null,null," - Connaissances générales sur l’anatomie du chien, sa préparation à l’effort et ses limites physiques."]
[null,null,null," - Connaissances générales sur l’anatomie et le comportement du mouton : faire/ ne pas faire à cet animal."]
[null,"Niveau de dressage du chien","Aptitudes naturelles et niveau de dressage du chien."," - Chien travaillant sans contrainte et faisant preuve d’initiative                                                                                                                                                                                                                                                                                                                        - Chien courageux et sans agressivité"]
[null,null,null," - Chien ayant acquis les ordres de base et répondant à ces ordres sans relance systématique"]
[null,null,null,null,{"$f":"SUM(E15:E42)","v":0},{"$f":"SUM(F15:F42)","v":0}]
[null,"Interprétation du travail réalisé par le binôme homme-chien."]
[null,null,null,null,{"$f":"IF((E43)=0,\"-\",E43)","v":"-"},{"$f":"IF(COUNT(G45:N45)=0,\"-\",G45+I45+K45+M45-E45)","v":"-"}]
[]
[null,null,null,"Résultat < 70 POINTS Ajourné ou Refusé"]
[null,"NOM DU JUGE : ",{"$f":"'Fiche organisateur N_1'!D38","v":0},null,{"$f":"IF(E45=\"-\",\"-\",IF(E45>69.999,\"APTE\",IF(E45>0.1,\"AJOURNE\",IF(E45=0,\"REFUSE\"))))","v":"-"}]
[null,"Lieu et date de l'examen :",{"$f":"CONCATENATE('Fiche organisateur N_1'!D26,\", le \",TEXT('Fiche organisateur N_1'!D23,\"jj.mm.aaaa\"))","v":", le 00.01.1900"}]
[null,"Signature du juge : "]
[]
[null,null,null,null,{"$f":"IF(E48=\"X\",\"APTE\",IF(E49=\"X\",\"AJOURNE\",IF(E50=\"X\",\"REFUSE\",\"-\")))","v":"-"}]
[null,"Sous réserve de ne pas avoir été « Refusé » ou « Ajourné », ce certificat autorise son titulaire à demander la délivrance de la Licence d’Utilisateur autorisant l’engagement du chien, ci-dessus désigné, en niveau I des concours Inter-Races de chiens de berger sur troupeaux d'ovins."]
[]
[null,"Secrétariat CUNTRP : Henri CORNIER 1239 chemin du BOSQUE 40600 BISCARROSSE Tèl: 06 32 69 08 71\nMail : secretariat.cuntrp@orange.fr\n"]

{"sheet":"N_13","index":15,"n_rows":55,"n_cols":9,"rows_kept":55,"cut":false,"hidden":false,"merged":[[1,1,1,5],[2,1,2,5],[4,4,4,5],[5,4,6,5],[7,4,7,5],[8,4,9,5],[10,4,10,5],[11,4,11,5],[14,1,17,1],[14,2,17,2],[14,4,17,4],[14,5,17,5],[18,1,19,1],[18,2,19,2],[18,4,19,4],[18,5,19,5],[20,1,21,1],[20,2,21,2],[20,4,21,4],[20,5,21,5],[22,1,24,1],[22,2,24,2],[22,4,24,4],[22,5,24,5],[25,1,26,1],[25,2,26,2],[25,4,26,4],[25,5,26,5],[36,4,39,4],[36,5,39,5],[27,2,29,2],[27,4,29,4],[27,5,29,5],[30,1,31,1],[30,2,31,2],[30,4,31,4],[30,5,31,5],[44,4,44,5],[49,2,50,2],[46,3,46,5],[47,4,47,5],[32,1,35,1],[32,2,35,2],[32,4,35,4],[32,5,35,5],[36,1,39,1],[36,2,39,2],[40,1,41,1],[40,2,41,2],[40,4,41,4],[40,5,41,5],[52,1,52,5],[54,1,54,6],[43,1,43,3],[44,1,44,3],[45,1,45,3],[49,1,50,1]]}
[]
[null,"GRILLE D’EVALUATION DE L’EPREUVE PRATIQUE ET THEORIQUE du CACCBT"]
[null,"(Certificat d’Aptitude à la Conduite du Chien de Berger sur Troupeaux)",null,null,null,null,null,null,"Secrétariat : vous pouvez faire vos remarques dans ce cadre"]
[]
[null,null,"Nom et Prénom du conducteur :",{"$f":"'Fiche organisateur N_2'!D27","v":0},"Organisateur"]
[null,null,"Nom du chien :",{"$f":"CONCATENATE('Fiche organisateur N_2'!F27,\" _ \",'Fiche organisateur N_2'!G27)","v":" _ "},{"$f":"'Fiche organisateur N_2'!G3","v":0}]
[null,null,"Date de naissance :",{"$f":"'Fiche organisateur N_2'!I27","v":"00:00:00"}]
[null,null,"Race/S :",{"$f":"'Fiche organisateur N_2'!H27","v":0},"Lieu "]
[null,"155, Avenue Jean Jaures","N° LOF :",{"$f":"'Fiche organisateur N_2'!J27","v":0},{"$f":"'Fiche organisateur N_1'!D26","v":0}]
[null,"93 535 - AUBERVILLIERS Cedex","N° Identification :",{"$f":"'Fiche organisateur N_2'!K27","v":0}]
[null,null,"N° CT :  ",{"$f":"'Fiche organisateur N_2'!L27","v":0},"Date"]
[null,null,"NOM du formateur :",{"$f":"'Fiche organisateur N_2'!E27","v":0},{"$f":"'Fiche organisateur N_1'!D23","v":"00:00:00"}]
[null,"Le troupeau doit être constitué de 15 animaux au moins."]
[null,"EPREUVES","CRITERES D’EVALUATION","RESULTATS  (Exigés)","ACQUIS /10","NON ACQUIS =0"]
[null,"Travail en parc","Capacité à réaliser une protection et à faciliter la sortie.","Chien ne montrant ni crainte ni agressivité : "]
[null,null,null," - Marchant au pas de son maitre"]
[null,null,null," - Placé devant le conducteur ou au pied"]
[null,null,null," - Sortie dans le calme sans coupure du lot"]
[null,"Cheminement","Capacité à déplacer un lot d’animaux sur une distance d'au moins 200m et comportant un virage à droite et un à gauche."," - Placement du chien n’entraînant pas de fuite  du lot",null,"Eliminatoire"]
[null,null,null," - Déplacement contrôlé, fluide et sans hâte."]
[null,"Passages étroits","Capacité à faire franchir un obstacle selon les indications de l'examinateur."," - Anticipation"]
[null,null,null," - Placement et distance du chien adaptés à la situation"]
[null,"Stabilisation","Capacité à immobiliser un lot d’animaux","Manœuvre de placement dans l’espace prévu cohérente : "]
[null,null,null," - Immobilisation réalisée conjointement par maître et chien"]
[null,null,null," - Immobilisation franche  durant une minute"]
[null,"Prise/Contention","Capacité, à l’aide du chien, d’attraper et contenir un animal, puis le mettre en position assise."," - Opérations réalisées dans le respect de l’animal"]
[null,null,null," - Troupeau restant contenu dans l’espace prévu lors de la prise"]
[null,"Recherche/Amenée","Capacité à travailler à distance\nCapacité à rassembler et amener un lot d’animaux vers le conducteur."," - Départ de la recherche  sur ordre du conducteur",null,"Eliminatoire"]
[null,"Distance 80 / 100m",null," - Contournement suffisant"]
[null,null,null," - Amenée sans bousculade ni dispersion et sans changement radical de direction."]
[null,"Rentrée en parc","Capacité à maitriser les entrées en bâtiment"," - Approche de la porte sous contrôle"]
[null,null,null," - Placement du binôme judicieux permettant une entrée sans bousculade."]
[null,"Technique de conduite du troupeau","Maitrise du conducteur"," - Respect des animaux"]
[null,null,null," - Autorité sans autoritarisme"]
[null,null,null," - Commandements appropriés"]
[null,null,null," - Gestion cohérente des difficultés du parcours"]
[null,"Connaissances théoriques du conducteur","Connaissance des animaux concernés et du cadre des concours"," - Connaissance du règlement des concours sur troupeau"]
[null,null,null," - Connaissance des grands types de races ovines et de leurs particularités"]
[null,null,null," - Connaissances générales sur l’anatomie du chien, sa préparation à l’effort et ses limites physiques."]
[null,null,null," - Connaissances générales sur l’anatomie et le comportement du mouton : faire/ ne pas faire à cet animal."]
[null,"Niveau de dressage du chien","Aptitudes naturelles et niveau de dressage du chien."," - Chien travaillant sans contrainte et faisant preuve d’initiative                                                                                                                                                                                                                                                                                                                        - Chien courageux et sans agressivité"]
[null,null,null," - Chien ayant acquis les ordres de base et répondant à ces ordres sans relance systématique"]
[null,null,null,null,{"$f":"SUM(E15:E42)","v":0},{"$f":"SUM(F15:F42)","v":0}]
[null,"Interprétation du travail réalisé par le binôme homme-chien."]
[null,null,null,null,{"$f":"IF((E43)=0,\"-\",E43)","v":"-"},{"$f":"IF(COUNT(G45:N45)=0,\"-\",G45+I45+K45+M45-E45)","v":"-"}]
[]
[null,null,null,"Résultat < 70 POINTS Ajourné ou Refusé"]
[null,"NOM DU JUGE : ",{"$f":"'Fiche organisateur N_1'!D38","v":0},null,{"$f":"IF(E45=\"-\",\"-\",IF(E45>69.999,\"APTE\",IF(E45>0.1,\"AJOURNE\",IF(E45=0,\"REFUSE\"))))","v":"-"}]
[null,"Lieu et date de l'examen :",{"$f":"CONCATENATE('Fiche organisateur N_1'!D26,\", le \",TEXT('Fiche organisateur N_1'!D23,\"jj.mm.aaaa\"))","v":", le 00.01.1900"}]
[null,"Signature du juge : "]
[]
[null,null,null,null,{"$f":"IF(E48=\"X\",\"APTE\",IF(E49=\"X\",\"AJOURNE\",IF(E50=\"X\",\"REFUSE\",\"-\")))","v":"-"}]
[null,"Sous réserve de ne pas avoir été « Refusé » ou « Ajourné », ce certificat autorise son titulaire à demander la délivrance de la Licence d’Utilisateur autorisant l’engagement du chien, ci-dessus désigné, en niveau I des concours Inter-Races de chiens de berger sur troupeaux d'ovins."]
[]
[null,"Secrétariat CUNTRP : Henri CORNIER 1239 chemin du BOSQUE 40600 BISCARROSSE Tèl: 06 32 69 08 71\nMail : secretariat.cuntrp@orange.fr\n"]

{"sheet":"N_14","index":16,"n_rows":55,"n_cols":9,"rows_kept":55,"cut":false,"hidden":false,"merged":[[1,1,1,5],[2,1,2,5],[4,4,4,5],[5,4,6,5],[7,4,7,5],[8,4,9,5],[10,4,10,5],[11,4,11,5],[14,1,17,1],[14,2,17,2],[14,4,17,4],[14,5,17,5],[18,1,19,1],[18,2,19,2],[18,4,19,4],[18,5,19,5],[20,1,21,1],[20,2,21,2],[20,4,21,4],[20,5,21,5],[22,1,24,1],[22,2,24,2],[22,4,24,4],[22,5,24,5],[25,1,26,1],[25,2,26,2],[25,4,26,4],[25,5,26,5],[36,4,39,4],[36,5,39,5],[27,2,29,2],[27,4,29,4],[27,5,29,5],[30,1,31,1],[30,2,31,2],[30,4,31,4],[30,5,31,5],[44,4,44,5],[49,2,50,2],[46,3,46,5],[47,4,47,5],[32,1,35,1],[32,2,35,2],[32,4,35,4],[32,5,35,5],[36,1,39,1],[36,2,39,2],[40,1,41,1],[40,2,41,2],[40,4,41,4],[40,5,41,5],[52,1,52,5],[54,1,54,6],[43,1,43,3],[44,1,44,3],[45,1,45,3],[49,1,50,1]]}
[]
[null,"GRILLE D’EVALUATION DE L’EPREUVE PRATIQUE ET THEORIQUE du CACCBT"]
[null,"(Certificat d’Aptitude à la Conduite du Chien de Berger sur Troupeaux)",null,null,null,null,null,null,"Secrétariat : vous pouvez faire vos remarques dans ce cadre"]
[]
[null,null,"Nom et Prénom du conducteur :",{"$f":"'Fiche organisateur N_2'!D28","v":0},"Organisateur"]
[null,null,"Nom du chien :",{"$f":"CONCATENATE('Fiche organisateur N_2'!F28,\" _ \",'Fiche organisateur N_2'!G28)","v":" _ "},{"$f":"'Fiche organisateur N_2'!G3","v":0}]
[null,null,"Date de naissance :",{"$f":"'Fiche organisateur N_2'!I28","v":"00:00:00"}]
[null,null,"Race/S :",{"$f":"'Fiche organisateur N_2'!H28","v":0},"Lieu "]
[null,"155, Avenue Jean Jaures","N° LOF :",{"$f":"'Fiche organisateur N_2'!J28","v":0},{"$f":"'Fiche organisateur N_1'!D26","v":0}]
[null,"93 535 - AUBERVILLIERS Cedex","N° Identification :",{"$f":"'Fiche organisateur N_2'!K28","v":0}]
[null,null,"N° CT :  ",{"$f":"'Fiche organisateur N_2'!L28","v":0},"Date"]
[null,null,"NOM du formateur :",{"$f":"'Fiche organisateur N_2'!E28","v":0},{"$f":"'Fiche organisateur N_1'!D23","v":"00:00:00"}]
[null,"Le troupeau doit être constitué de 15 animaux au moins."]
[null,"EPREUVES","CRITERES D’EVALUATION","RESULTATS  (Exigés)","ACQUIS /10","NON ACQUIS =0"]
[null,"Travail en parc","Capacité à réaliser une protection et à faciliter la sortie.","Chien ne montrant ni crainte ni agressivité : "]
[null,null,null," - Marchant au pas de son maitre"]
[null,null,null," - Placé devant le conducteur ou au pied"]
[null,null,null," - Sortie dans le calme sans coupure du lot"]
[null,"Cheminement","Capacité à déplacer un lot d’animaux sur une distance d'au moins 200m et comportant un virage à droite et un à gauche."," - Placement du chien n’entraînant pas de fuite  du lot",null,"Eliminatoire"]
[null,null,null," - Déplacement contrôlé, fluide et sans hâte."]
[null,"Passages étroits","Capacité à faire franchir un obstacle selon les indications de l'examinateur."," - Anticipation"]
[null,null,null," - Placement et distance du chien adaptés à la situation"]
[null,"Stabilisation","Capacité à immobiliser un lot d’animaux","Manœuvre de placement dans l’espace prévu cohérente : "]
[null,null,null," - Immobilisation réalisée conjointement par maître et chien"]
[null,null,null," - Immobilisation franche  durant une minute"]
[null,"Prise/Contention","Capacité, à l’aide du chien, d’attraper et contenir un animal, puis le mettre en position assise."," - Opérations réalisées dans le respect de l’animal"]
[null,null,null," - Troupeau restant contenu dans l’espace prévu lors de la prise"]
[null,"Recherche/Amenée","Capacité à travailler à distance\nCapacité à rassembler et amener un lot d’animaux vers le conducteur."," - Départ de la recherche  sur ordre du conducteur",null,"Eliminatoire"]
[null,"Distance 80 / 100m",null," - Contournement suffisant"]
[null,null,null," - Amenée sans bousculade ni dispersion et sans changement radical de direction."]
[null,"Rentrée en parc","Capacité à maitriser les entrées en bâtiment"," - Approche de la porte sous contrôle"]
[null,null,null," - Placement du binôme judicieux permettant une entrée sans bousculade."]
[null,"Technique de conduite du troupeau","Maitrise du conducteur"," - Respect des animaux"]
[null,null,null," - Autorité sans autoritarisme"]
[null,null,null," - Commandements appropriés"]
[null,null,null," - Gestion cohérente des difficultés du parcours"]
[null,"Connaissances théoriques du conducteur","Connaissance des animaux concernés et du cadre des concours"," - Connaissance du règlement des concours sur troupeau"]
[null,null,null," - Connaissance des grands types de races ovines et de leurs particularités"]
[null,null,null," - Connaissances générales sur l’anatomie du chien, sa préparation à l’effort et ses limites physiques."]
[null,null,null," - Connaissances générales sur l’anatomie et le comportement du mouton : faire/ ne pas faire à cet animal."]
[null,"Niveau de dressage du chien","Aptitudes naturelles et niveau de dressage du chien."," - Chien travaillant sans contrainte et faisant preuve d’initiative                                                                                                                                                                                                                                                                                                                        - Chien courageux et sans agressivité"]
[null,null,null," - Chien ayant acquis les ordres de base et répondant à ces ordres sans relance systématique"]
[null,null,null,null,{"$f":"SUM(E15:E42)","v":0},{"$f":"SUM(F15:F42)","v":0}]
[null,"Interprétation du travail réalisé par le binôme homme-chien."]
[null,null,null,null,{"$f":"IF((E43)=0,\"-\",E43)","v":"-"},{"$f":"IF(COUNT(G45:N45)=0,\"-\",G45+I45+K45+M45-E45)","v":"-"}]
[]
[null,null,null,"Résultat < 70 POINTS Ajourné ou Refusé"]
[null,"NOM DU JUGE : ",{"$f":"'Fiche organisateur N_1'!D38","v":0},null,{"$f":"IF(E45=\"-\",\"-\",IF(E45>69.999,\"APTE\",IF(E45>0.1,\"AJOURNE\",IF(E45=0,\"REFUSE\"))))","v":"-"}]
[null,"Lieu et date de l'examen :",{"$f":"CONCATENATE('Fiche organisateur N_1'!D26,\", le \",TEXT('Fiche organisateur N_1'!D23,\"jj.mm.aaaa\"))","v":", le 00.01.1900"}]
[null,"Signature du juge : "]
[]
[null,null,null,null,{"$f":"IF(E48=\"X\",\"APTE\",IF(E49=\"X\",\"AJOURNE\",IF(E50=\"X\",\"REFUSE\",\"-\")))","v":"-"}]
[null,"Sous réserve de ne pas avoir été « Refusé » ou « Ajourné », ce certificat autorise son titulaire à demander la délivrance de la Licence d’Utilisateur autorisant l’engagement du chien, ci-dessus désigné, en niveau I des concours Inter-Races de chiens de berger sur troupeaux d'ovins."]
[]
[null,"Secrétariat CUNTRP : Henri CORNIER 1239 chemin du BOSQUE 40600 BISCARROSSE Tèl: 06 32 69 08 71\nMail : secretariat.cuntrp@orange.fr\n"]

{"sheet":"N_15","index":17,"n_rows":55,"n_cols":9,"rows_kept":55,"cut":false,"hidden":false,"merged":[[54,1,54,6],[45,1,45,3],[46,3,46,5],[47,4,47,5],[49,1,50,1],[49,2,50,2],[52,1,52,5],[40,1,41,1],[40,2,41,2],[40,4,41,4],[40,5,41,5],[43,1,43,3],[44,1,44,3],[44,4,44,5],[32,1,35,1],[32,2,35,2],[32,4,35,4],[32,5,35,5],[36,1,39,1],[36,2,39,2],[36,4,39,4],[36,5,39,5],[27,2,29,2],[27,4,29,4],[27,5,29,5],[30,1,31,1],[30,2,31,2],[30,4,31,4],[30,5,31,5],[22,1,24,1],[22,2,24,2],[22,4,24,4],[22,5,24,5],[25,1,26,1],[25,2,26,2],[25,4,26,4],[25,5,26,5],[18,1,19,1],[18,2,19,2],[18,4,19,4],[18,5,19,5],[20,1,21,1],[20,2,21,2],[20,4,21,4],[20,5,21,5],[10,4,10,5],[11,4,11,5],[14,1,17,1],[14,2,17,2],[14,4,17,4],[14,5,17,5],[1,1,1,5],[2,1,2,5],[4,4,4,5],[5,4,6,5],[7,4,7,5],[8,4,9,5]]}
[]
[null,"GRILLE D’EVALUATION DE L’EPREUVE PRATIQUE ET THEORIQUE du CACCBT"]
[null,"(Certificat d’Aptitude à la Conduite du Chien de Berger sur Troupeaux)",null,null,null,null,null,null,"Secrétariat : vous pouvez faire vos remarques dans ce cadre"]
[]
[null,null,"Nom et Prénom du conducteur :",{"$f":"'Fiche organisateur N_2'!D29","v":0},"Organisateur"]
[null,null,"Nom du chien :",{"$f":"CONCATENATE('Fiche organisateur N_2'!F29,\" _ \",'Fiche organisateur N_2'!G29)","v":" _ "},{"$f":"'Fiche organisateur N_2'!G3","v":0}]
[null,null,"Date de naissance :",{"$f":"'Fiche organisateur N_2'!I29","v":"00:00:00"}]
[null,null,"Race/S :",{"$f":"'Fiche organisateur N_2'!H29","v":0},"Lieu "]
[null,"155, Avenue Jean Jaures","N° LOF :",{"$f":"'Fiche organisateur N_2'!J29","v":0},{"$f":"'Fiche organisateur N_1'!D26","v":0}]
[null,"93 535 - AUBERVILLIERS Cedex","N° Identification :",{"$f":"'Fiche organisateur N_2'!K29","v":0}]
[null,null,"N° CT :  ",{"$f":"'Fiche organisateur N_2'!L29","v":0},"Date"]
[null,null,"NOM du formateur :",{"$f":"'Fiche organisateur N_2'!E29","v":0},{"$f":"'Fiche organisateur N_1'!D23","v":"00:00:00"}]
[null,"Le troupeau doit être constitué de 15 animaux au moins."]
[null,"EPREUVES","CRITERES D’EVALUATION","RESULTATS  (Exigés)","ACQUIS /10","NON ACQUIS =0"]
[null,"Travail en parc","Capacité à réaliser une protection et à faciliter la sortie.","Chien ne montrant ni crainte ni agressivité : "]
[null,null,null," - Marchant au pas de son maitre"]
[null,null,null," - Placé devant le conducteur ou au pied"]
[null,null,null," - Sortie dans le calme sans coupure du lot"]
[null,"Cheminement","Capacité à déplacer un lot d’animaux sur une distance d'au moins 200m et comportant un virage à droite et un à gauche."," - Placement du chien n’entraînant pas de fuite  du lot",null,"Eliminatoire"]
[null,null,null," - Déplacement contrôlé, fluide et sans hâte."]
[null,"Passages étroits","Capacité à faire franchir un obstacle selon les indications de l'examinateur."," - Anticipation"]
[null,null,null," - Placement et distance du chien adaptés à la situation"]
[null,"Stabilisation","Capacité à immobiliser un lot d’animaux","Manœuvre de placement dans l’espace prévu cohérente : "]
[null,null,null," - Immobilisation réalisée conjointement par maître et chien"]
[null,null,null," - Immobilisation franche  durant une minute"]
[null,"Prise/Contention","Capacité, à l’aide du chien, d’attraper et contenir un animal, puis le mettre en position assise."," - Opérations réalisées dans le respect de l’animal"]
[null,null,null," - Troupeau restant contenu dans l’espace prévu lors de la prise"]
[null,"Recherche/Amenée","Capacité à travailler à distance\nCapacité à rassembler et amener un lot d’animaux vers le conducteur."," - Départ de la recherche  sur ordre du conducteur",null,"Eliminatoire"]
[null,"Distance 80 / 100m",null," - Contournement suffisant"]
[null,null,null," - Amenée sans bousculade ni dispersion et sans changement radical de direction."]
[null,"Rentrée en parc","Capacité à maitriser les entrées en bâtiment"," - Approche de la porte sous contrôle"]
[null,null,null," - Placement du binôme judicieux permettant une entrée sans bousculade."]
[null,"Technique de conduite du troupeau","Maitrise du conducteur"," - Respect des animaux"]
[null,null,null," - Autorité sans autoritarisme"]
[null,null,null," - Commandements appropriés"]
[null,null,null," - Gestion cohérente des difficultés du parcours"]
[null,"Connaissances théoriques du conducteur","Connaissance des animaux concernés et du cadre des concours"," - Connaissance du règlement des concours sur troupeau"]
[null,null,null," - Connaissance des grands types de races ovines et de leurs particularités"]
[null,null,null," - Connaissances générales sur l’anatomie du chien, sa préparation à l’effort et ses limites physiques."]
[null,null,null," - Connaissances générales sur l’anatomie et le comportement du mouton : faire/ ne pas faire à cet animal."]
[null,"Niveau de dressage du chien","Aptitudes naturelles et niveau de dressage du chien."," - Chien travaillant sans contrainte et faisant preuve d’initiative                                                                                                                                                                                                                                                                                                                        - Chien courageux et sans agressivité"]
[null,null,null," - Chien ayant acquis les ordres de base et répondant à ces ordres sans relance systématique"]
[null,null,null,null,{"$f":"SUM(E15:E42)","v":0},{"$f":"SUM(F15:F42)","v":0}]
[null,"Interprétation du travail réalisé par le binôme homme-chien."]
[null,null,null,null,{"$f":"IF((E43)=0,\"-\",E43)","v":"-"},{"$f":"IF(COUNT(G45:N45)=0,\"-\",G45+I45+K45+M45-E45)","v":"-"}]
[]
[null,null,null,"Résultat < 70 POINTS Ajourné ou Refusé"]
[null,"NOM DU JUGE : ",{"$f":"'Fiche organisateur N_1'!D38","v":0},null,{"$f":"IF(E45=\"-\",\"-\",IF(E45>69.999,\"APTE\",IF(E45>0.1,\"AJOURNE\",IF(E45=0,\"REFUSE\"))))","v":"-"}]
[null,"Lieu et date de l'examen :",{"$f":"CONCATENATE('Fiche organisateur N_1'!D26,\", le \",TEXT('Fiche organisateur N_1'!D23,\"jj.mm.aaaa\"))","v":", le 00.01.1900"}]
[null,"Signature du juge : "]
[]
[null,null,null,null,{"$f":"IF(E48=\"X\",\"APTE\",IF(E49=\"X\",\"AJOURNE\",IF(E50=\"X\",\"REFUSE\",\"-\")))","v":"-"}]
[null,"Sous réserve de ne pas avoir été « Refusé » ou « Ajourné », ce certificat autorise son titulaire à demander la délivrance de la Licence d’Utilisateur autorisant l’engagement du chien, ci-dessus désigné, en niveau I des concours Inter-Races de chiens de berger sur troupeaux d'ovins."]
[]
[null,"Secrétariat CUNTRP : Henri CORNIER 1239 chemin du BOSQUE 40600 BISCARROSSE Tèl: 06 32 69 08 71\nMail : secretariat.cuntrp@orange.fr\n"]